{"text_format":"2","workbook":"xlsx","n_sheets":1,"sheets":["Hoja1"],"not_rendered":{"charts":0,"images":0,"macros":0,"external_links":0,"defined_names":1,"comments":0,"pivot_tables":0},"unopened":[],"bounds":{"document_bytes":16777216,"sheet_cells":100000,"run_cost":"one","rows_first":2000,"rows_last":500,"rows_between":2000,"halvings":0,"cell_chars":16384,"cell_head_chars":4096},"cells_cut":1,"cells_raw":0,"read":"whole","date_system":"1900"}

{"sheet":"Hoja1","index":0,"n_rows":162,"n_cols":21,"rows_kept":162,"cut":false,"hidden":false,"merged":[]}
["Name","Last name","Email","Name of the organisation","Address","Email contact of the organisation","Phone","Web site","Typology (M)","Description","Country (M)","Geographical scope (M)","Experience in sustainable finance","Instruments","Average investment amount","Scope of operations and Sectors","Phase of business grow you invest in (M)","Most important prerequisites for financing a project","Most important barriers that prevent financing","Minimum investment required","Currently available financial products"]
["sefeaimpact.it","info",{"$f":"CONCATENATE(\"info@\",A2)","v":"info@sefeaimpact.it"},"SEFEA IMPACT SGR SpA","Piazza De Gasperi, 42 35131 Padova",null,"(+) 39 049 7648000","http://sefeaimpact.it/","Impact Investment","SEFEA IMPACT SGR SpA is an asset management company dedicated to manage closed investment funds adopting an impact investing strategy. The company is now managing a fund focused to support social enterpreneurship, focusing on deplying economic, social and environmental impacts.","Italy","Italy","Equity investment in Immobiliare Sociale Bresciana: Social Housing initiative promoting eco-renovation of exisiting building for maximum energy efficency. Equity investment in Tonnara dell'Orsa: renovation and management of an historic building on the seaside, promoting an eco- eco-turism.","Equity investments; Subordinated loans","Ranging from 300.000€ to 2M€","Any kind of economic sector having a clear positive impact on the communities, such as:\n- Education\n- Health and well-being\n- Sustainable food production\n- Creative industry and culture\n- Social housing services\n- Energy efficiency and production\n- Management and recycling of waste\n- Microfinance\n- Social and sustainable tourism\n- Sustainable mobility","Growth","Quantifiable positive impact and viable business model.",null,"300k€","Equity investment, subordinated loans"]
["bancaetica.it","info",{"$f":"CONCATENATE(\"info@\",A3)","v":"info@bancaetica.it"},"Banca Popolare Etica","Via Niccolò Tommaseo, 7 35131 Padova",null,"(+) 39 049/8771111","https://www.bancaetica.it/about-us","Bank","Banca Etica is a cooperative bank that operates in Italy and Spain. It was established thanks to the commitment of a number of individuals and organizations who joined forces to create a credit institution based on Ethical Finance principles: transparency, participation, sobriety, efficiency and attention to the non-economic consequences of economic actions. Its democratic management and ethical approach are ensured by the fact that its members freely participate according to the “one head, one vote” principle: all shareholders have the same right to vote in the General Assembly, irrespective of the number of shares they own.","Italy","Italy; Spain","Thousands of loans to green activities such as: organic farming, renewable energy production and energy efficency, recycling, etc. Banca Etica offers the main banking products and services, and a different banking experience founded on relationships: the focus on people and organizations is guaranteed by a network of bank branches and financial advisors all over Italy, in addition to complete online service accessible to all clients.","Loans","Loans: 20.520 €","Banca Etica finances only projects, companies and organizations that are capable of producing social and environmental value in one of the following areas:\n- COOPERATION and INNOVATION Social services, education and health, fighting social exclusion, providing employment for the disadvantaged.\n- INTERNATIONAL COOPERATION Providing funding to non-profit organizations and NGOs working in the southern areas of the world, supporting Fair Trade, training for micro-enterprises and development of partnerships.\n- ENVIRONMENT Reduction of energy consumption, development of renewable energy sources, promotion of organic and bio-dynamic farming and sustainable projects.\n- CULTURE and CIVIC SOCIETY Promotion of a culture of legality, enhancement of artistic and cultural heritage, support for non-profit associations and projects for socio-cultural leadership, responsible tourism.","Ideation; Early Stage; Growth; Scale","Equal weight to financial analysis and extra-financial analysis:\n- The financial analysis consists of a classic verification of consistency, reliability and sustainability of the content of the Business Plan.\n- The extra-financial analysis consists of an evaluation of the social and environmental performance of the company.",null,null,"Bank account and saving products; loans; microloans; factoring."]
["fondazioneconilsud.it","info","info@fondazioneconilsud.it","Fondazione Con il Sud","Via del Corso, 267 00186 Rome, Italy",null,"(+) 39 06 6879721","https://www.fondazioneconilsud.it/en/fondazione/about-us/","Private Foundation","Fondazione CON IL SUD was launched in November 2006, as a result of the alliance between bank foundations and Italian third sector and volunteer organisations; it was created to foster social infrastructure in Southern Italy, focusing on building up and qualifying the intangible structures to promote development.\nIn particular, the Foundation is committed to promote social cohesion paths, enhancing the ideas, energies and skills already existing in the territory: thanks to the resources distributed, these can gather around effective projects and actions, aiming to foster social capital development.","Italy","Italy","Foundation WITH THE SOUTH has supported more than 1.000 initiatives, involving 6.000 different organizations, both non-profit, public institutions and individuals, more than  283.000 citizens, above all youths (40% minors), allocating in all 176 millions euros.","Grants",200000,"Areas of Action:\n- Development of human capital excellence to foster young talents and to counter brain drain;\n- Development, qualification and innovation of health and social services;\n- Education of young people in the culture of legality and to counteract school drop-out;\n- Cultural mediation and integration of immigrants;\n- Care and valorisation of common property (historical, artistic and cultural heritage, environment, property confiscated from the mafia).","Ideation; Early Stage; Growth; Scale","Fondazione Con il Sud mainly provides grants through Call for proposals. Each call has its own requirements. Main common eligibility criteria: non-for profit status and activity in Southern Italy.",null,null,"Fondazione CON IL SUD operates through three main grant tools, in the six regions of Southern Italy:\n- “Exemplary” projects\nInitiatives whose innovative content, organisations involved, impact and territorial significance can turn them into benchmarks for social infrastructure.\n- Community foundations\nNon-profit entities that are the “expression” of local realities, whose capacity to raise funds to be invested for social purposes in the local territory represents an extraordinary subsidiarity. Absent from the Southern Italian panorama until 2009, the first five community foundations were established in Salerno, in Messina, two in Naples and in Val di Noto (Sicily), with the support of Fondazione CON IL SUD.\n- Volunteer programmes and networks\nInzitiatives meant to strengthen the impact of the volunteer networks already operating in the territory."]
["it.lita.co","info","info@it.lita.co","Lita.co","Via Andrea Doria, 15 10123 Torino",null,"(+) 39 02 8973 2252","https://it.lita.co/en/","Crowd Equity","The first Equity Crowdfunding platform exclusively focused on eco and social projects, allowing retail investors do be directly engaged.","Italy","Italy","SEAY - Sustainable beachwear from plastic bottles; WayCap - Refillable Capsules and Coffee.","Equity Crowdfunding","up to 300.000 €","At LITA.co, we are very committed to the notion of sustainable development, which implies development that is economically efficient, socially equitable and ecologically sustainable. This is why we select organizations that meet one or more of the 17 Sustainable Development Goals (SDGs) set out by the UN.","Ideation; Early Stage; Growth; Scale","Equal weight to financial analysis and extra-financial analysis:\n- The financial analysis consists of a classic verification of consistency, reliability and sustainability of the content of the Business Plan.\n- The extra-financial analysis consists of an evaluation of the social and environmental performance that the company intends to generate intentionally. The output and outcome indicators for measuring performance are defined on the basis of the specific characteristics of each company and explained in the form of key performance indicators (KPIs).",null,null,"Equity-based crowdfunding: through the online platform the retail investor buys a real equity share in a company: in this case, the \"reward\" for the financing is represented by the sum of economic and administrative rights that derive from the participation in the enterprise."]
["mecc-italia.eu","info","info@mecc-italia.eu","MECC","Forte Petrazza, Camaro Superiore, 98151, Messina (ME)\n",null,"(+) 39 090 9032762","https://www.mecc-italia.eu","Microfinance Institution","MECC is the first microcredit institution authorised by Bank of Italy according to the national microcredit regulation (art. 111 of Banking Regulation). It provides micro loans, focusing mainly on new social economy businesses, being economically, socially and environmentally sustainable.","Italy","Italy","MECC has invested in around 100 micro-enterprises, always focusing on the social and environmental soustainability.","Micro-loans"," up to 25.000 €","MECC supports:\n- new civil economy businesses, economically sustainable and socially and environmentally responsible;\n- long-time employment in the territories of reference;\n- social and economic inclusion;\n- strengthening the social and solidarity economy networks.","Ideation; Early Stage","Equal weight to financial analysis and extra-financial analysis:\n- The financial analysis consists of a classic verification of consistency, reliability and sustainability of the content of the Business Plan.\n- The extra-financial analysis consists of an evaluation of the social and environmental performance of the company.",null,null,"Micro-loans up to 25.000 €"]
["capitalnature.com","info","info@capitalnature.com","Capital Nature","10 Amal St. Afek Industrial Park, Rosh Ha’Ayin",null,"(+) 972-3-7297900; (+) 972-50-6240300","http://capitalnature.com","Venture Capital","Capital Nature is a leading investment firm focused on funding and accelerating early stage ventures, as well as academic research in the emerging Renewable Energy in Israel. In addition to incubating early stage start-up companies, Capital Nature also funds applied academic research in the area of renewable energy, and operates a test and validation center in the Eilot region.","Israel","Israel","http://capitalnature.com/portfolio/","Equity investments","$ 650 000","Renewable Energy (Solar; fuel; Biomass, geothermal, energy efficiency, smart grid, energy storage, electric vehicles).","Growth; Scale","Deep innovative technology that can be IP protected; outstanding & experienced team; big enough global market that is not limited in regulation or number of players.",null,"$ 600 000","Equity"]
["icv.vc","info","info@icv.vc","Israel Cleantech Ventures - ICV","ICV 10 Tozeret Ha'aretz Second Floor - Tel Aviv, Israel","info@icv.vc","(+) 972-3-644-6611","http://icv.vc/","Venture Capital","Established in 2006, ICV is the leading venture capital firm dedicated to partnering with exceptional entrepreneurs in Israel building businesses that leverage technology to enhance sustainability. ICV currently manages over $150M in two funds and has completed more than 25 investments. ICV funds are backed by leading institutional investors, multinational corporations and family offices in Europe, the US and Israel. ICV partners with entrepreneurs using technology and business model\ninnovation to transform markets in a resource-constrained world. Founded in 2006, ICV currently manages over $150 million in two funds. We bring together the rich experience of our investment team to help entrepreneurs turn their companies into market leaders.","Israel","Israel","Scodis, Freightos, Nova Lumos, FRX Polymers Ventures.","Equity investments","$1-2M","Energy; Water; Transportation; CleanTech; Logistics; AgTech.","Growth; Scale",null,null,null,"Equity"]
["rimonimfund.com","info","info@rimonimfund.com","Rimonim Venture Capital","PO Box 331 Kefar Vitkin 40200",null,"(+) 97298664468","http://rimonimfund.com","Venture Capital","Rimonim Venture Capital is a significant investor in early-stage Israeli and Israeli-related food and agrotech companies, taking an active role in company management and preserving cash for follow-on rounds to minimize dilution and maximize shares at exit.\nRimonim understands the maturity horizon in agrotech and considers the entire spectrum in order to achieve a balanced investment portfolio to create value. It takes into account the shorter-term maturities of companies involved in precision agriculture, climate control, and IT, and the longer-term maturities of technologies related to functional foods, aquaculture, plant breeding, pesticides, and sustainability.\n","Israel","Israel","Food and Agrotech.","Equity investments",null,"Food; Agrotech.","Growth; Scale","Proved scalability of the product.",null,null,"Equity"]
["aquagrofund.com","info","info@aquagrofund.com","AquAgro Fund","Psagot Tower, 3 Rothschild St., Tel Aviv 6688106, Israel",null,"(+) 972 (3) 7505603/6","www.aquagrofund.com","Venture Capital","AquAgro Fund LP is a venture capital fund focused on Israel’s innovative water and agriculture technologies, as well as on other new clean technologies. The fund aims to realize substantial capital appreciation through private equity and equity-related investments in high-potential Israeli and Israeli-related early-stage to late-stage companies. AquAgro Fund was founded in partnership with the anchor group Gaon Agro Industries, AquAgro GbR (Germany), and Ainsbury Properties Ltd.","Israel","Israel","https://www.aquagrofund.com/clients","Equity investments",null,"Smart Agriculture; Food; Water; Renewable Energy.","Growth; Scale","https://www.aquagrofund.com/projects",null,null,"Equity"]
["sequoiacap.com","info","info@sequoiacap.com","Sequoia Capital","Tel Aviv50 Ramat Yam Street Orchid Oceanus Hotel Herzelia 4685150",null,"(+) 972 9 9579440","www.sequoiacap.com","Venture Capital","Sequoia Capital is a venture capital firm specializing in incubation, seed-stage, early-stage, and growth-stage investments in private companies. It also invests in public companies. The firm seeks to invest in all sectors, with a focus on energy, financial, enterprise, healthcare, internet, and mobile start-ups. Sequoia Capital was founded by Don Valentine in November 1972 and is based in Menlo Park, California. Sequoia Capital Israel started its activity in 1999 and is based in Herzelia.","Israel","Global","www.sequoiacap.com/companies/","Equity investments",null,"Energy efficiency; Healthcare; Tech; Communication.","Early Stage; Growth; Scale",null,null,"Min. Amount: $500K; Max. Amount $5M.","Equity"]
["moonscapevc.com","info","IDEAS@MOONSCAPEVC.COM","Moonscape Ventures","9 AHAD HA’AM, 7TH FLOOR, Tel Aviv, Israel","IDEAS@MOONSCAPEVC.COM","(+) 972 9-9727258","http://moonscapevc.com/","Venture Capital","Moonscape Ventures is a corporate development and investment company investing in early-stage companies all over the world. The company was founded by entrepreneur Mati Kochavi to support growth and launch start-ups in the areas of smart cities, news and media, big data, and internet of things.","Israel","Israel","Yes, in different ventures and invesment companies such as: Mybitat, amelia investments & holding, Dejavuto, Social Studios.","Equity investments",null,"Smart cities; Smart mobilities; News and media; Big data; IoT.","Growth; Scale",null,null,null,"Equity"]
["wanakacapital.com","info","rmelnik@wanakacapital.com","Wanaka Capital Partners","6 Raoul Wallenberg St. 3rd Floor Ramat Hachayal, Tel Aviv  Israel","rmelnik@wanakacapital.com","(+) 972-3-5223663","www.wanakacapital.com","Venture Capital","Wanaka Capital Partners is an Israeli fund targeted Israeli mid-tech companies in sectors such as industrial technologies, water and energy, consumer innovations, medical devices, materials, and more. Because mid-tech companies face fewer market and R&D risks, their typical challenges involve commercialization and go-to-market. The Wanaka Capital Partners team offers support that is particularly relevant to mid-tech companies, including commercialization, financial and strategic skills and experiences, and a broad international business network.","Israel","Israel",null,"Equity investments","Min. Amount: $1M; Max. Amount: $4M","Tech.","Growth; Scale",null,null,null,"Equity"]
["zaitounventures.com","info","info@zaitounventures.com","Zaitoun Ventures","Hamelitz 9, Unit #9\nTel Aviv-Jaffa, Israel 63295","info@zaitounventures.com",null,"www.zaitounventures.com","Venture Capital","Zaitoun Ventures is a values-driven, hybrid investment company and start-up factory. It leads and executes investments in disruptive start-ups together with its international partners. Zaitoun Ventures believes strongly in the power of diversity and seeks to invest in early-stage companies that are not only capable of disrupting their industries, but are also committed to leveraging diverse teams to propel their companies forward.While Zaitoun Ventures invests in a wide range of verticals, it is particularly interested in partnering with founding teams that bring together Jewish and Arab entrepreneurs. Zaitoun Ventures defines itself as an investment company rather than a VC, because of a more flexible model of investments (both in existing startups as well as de new companies they incubate under the \"umbrella\" of Zaitoun.","Israel","Israel","Yes, check the portfolio: https://www.zaitounventures.com/portfolio","Equity investments","Flexible","Zaitoun Ventures' portfolio companies range from medical devices and wearables to entertainment and next-gen fiberoptics, while focusing in companies gathering Arab and Jewish co-founders.  ","Growth; Scale","Ethnic mix of the team. The only existing startups Zaintoun looks to invest in are those led by Arab entrepreneurs / those with Jewish-Arab co-founders.",null,"Flexible","Equity"]
["terravp.com","info","\ninfo@terravp.com","Terra Ventures","4 Hamada St., PO box 355 Yokneam Illit  20692, Israel","\ninfo@terravp.com","(+) 972-4-6262660","www.terravp.com","Accelerator; Venture Capital","Terra Venture Partners is the leading Israeli multi-stage fund investing in and incubating novel technology companies.\nWe focus on efficiency, sustainability, mobility and wellness from pre-seed to early & growth stage. We stand at the gateway of Israeli innovation, a recognized powerhouse of original thought and breakthrough ideas. WhoO: We are an early stage venture capital firm dedicated to partnering with inspiring entrepreneurs to build breakthrough companies\nHow: From inception to commercialization, we invest in emerging and innovative technologies that have the potential to influence millions of lives.","Israel","Israel","Yes, check the portfolio online.","Equity investments",null,"Resource Efficiency; Sustainability; Mobility; Wellness.","Growth; Scale",null,null,"$600,000 to $2 million.","Equity"]
["greensoil-investments.com","info","info@greensoil-investments.com","GreenSoil Investments","Beit Bonei Binyan, HaMelacha 2, 3rd Floor, P.O.B. 4398, Ra’anana 43657, Israel.","info@greensoil-investments.com","(+) 972 (0)9-7887011","http://greensoil-investments.com/","Venture Capital","GreenSoil Investments funds companies with transformative technologies that change how we use the world’s resources. Our portfolio companies enable smart and efficient use of energy, water, and land in the Agriculture, Food, and Real Estate sectors.","Israel","Israel","Agrotech and Food; Sustainable Building;","Equity investments",null,"Building Innovation (GBIF); Investing for return and a more efficient, productive and sustainable built environment; Agro & Food (GAFT) Investing in the future for agro & food.","Growth; Scale",null,null,null,"Equity"]
["noyfund.co.il","info","Info@noyfund.co.il","NoyFund","98 Yigal Alon St. Tel Aviv, 67891 Israel98 Yigal Alon St.","Info@noyfund.co.il","(+) 972-3-7449911","https://www.noyfund.co.il/","Venture Capital","Noy Fund was established in May 2011 through the initiative of its anchor investors, Poalim Capital Markets (a member of the Poalim group) and the Clal Group, two of Israel’s leading investment groups. The Fund's managers enjoy the strong support of the local capital markets, raising over US$1100 million from many of Israel's largest institutional investors, to the fund and to co-investment vehicle.\n \nOver the past two decades the Noy Fund team members have been involved in almost every large scale infrastructure project executed in Israel and have had a significant contribution to the development of the project finance practice in Israel. The experience gained and relationships formed by Noy Fund's team uniquely positions it to invest and manage projects in the infrastructure sector. Noy Fund was established in May 2011 through the initiative of its anchor investors, Poalim Capital Markets (a member of the Poalim group) and the Clal Group, two of Israel’s leading investment groups. The Fund's managers enjoy the strong support of the local capital markets, raising over US$1100 million from many of Israel's largest institutional investors, to the fund and to co-investment vehicle.\n \nOver the past two decades the Noy Fund team members have been involved in almost every large scale infrastructure project executed in Israel and have had a significant contribution to the development of the project finance practice in Israel. The experience gained and relationships formed by Noy Fund's team uniquely positions it to invest and manage projects in the infrastructure sector.","Israel","Israel","Megaim Solar Power Ltd.; Negev Energy- Ashalim Thermo-Solar Ldt.; Star Pumped Storage Ltd.; Energy Works Hull Limited; Mivtahim Green Energies; Havazelet Halutziot Enlight... All the projects are detailes on the blog section of Noy Funf website : https://www.noyfund.co.il/blog.","Equity investments",null,"Infrastructure sector.","Scale",null,null,null,"Equity"]
["jgv.com","info","info@jgv.com","Jerusalem Global Ventures (JGV)","Jerusalem Global Ventures  8 E.S. Artom Street - Jerusalem, Israel","info@jgv.com",null,"https://www.jgv.com","Venture Capital","Jerusalem Global Ventures (JGV) is a venture capital fund that invests in Israeli technology startups. The two leading partners of the fund, Shlomo Kalish and Ranan Grobman, have been working together for 17+ years through multiple market cycles. Our success comes from a strong track record of backing category-defining companies across a broad range of technology sectors. The strength of JGV is to invest in companies who are visionary and leaders in their respective fields.","Israel","Israel","http://www.jgv.com/#portfolio","Equity investments; Convertible notes.",null,"Invest in companies who are visionary and leaders in their respective fields.","Scale","Strong track record.",null,null,"Equity"]
["hcie.ps","info","info@hcie.ps","HCIE","Rayhan suburb/2820016-7","info@hcie.ps","(+) 972 2 2820016/7","www.hcie.ps","Private Equity","The Higher Council, through its faith and confidence in the potential creative capacities and energies of the Palestinian people and its recognition of the vital role of creativity in building up the State of Palestine and strengthening the steadfastness, resilience and prosperity of the Palestinian people, seeks to play a leading role towards consolidating a culture of innovation and excellence among the Palestinian community and very fair and just empowerment of all those innovators and creative people, and towards strengthening the structure of creativity system in various sectors, so that creativity becomes mainstay of the economy and the knowledgeable society in which we seek.","Palestine","Palestine","Grants to develop prototypes of innovative ideas in related fields.","Grants; Seed Fund; Equity.",null,"Stimulation, evaluation, incubation, funding, investment, national and international cooperation, Policies and Strategies- All fields with focus on scietific & Technological ones.","Growth; Scale","Failure in complying with our financial procedures.","Financial support either seed fund or investment is decided case by case depends on the stage and the field, committees are formed upon need. Usually: innovation, value proposition, competitive advantage, etc","Depends on the project as investment decision is made case by case  ","Grants; Equity"]
["siraj.ps","info","ir@siraj.ps","Siraj Palestine Fund Management Company   ","8th Floor, Massar International Building, Q Center","ir@siraj.ps","(+) 970 2 2825777","https://www.siraj.ps","Private Equity","Siraj Fund Management Company (SFMC) is the first dedicated Palestinian private equity fund manager, founded by Massar International in 2003 for the sole purpose of managing investment funds in Palestine. SFMC’s first fund, Siraj Palestine Fund I, was launched on February 3, 2011, with a value of $90 million USD. SFMC is currently raising its second fund at $90 million USD, Siraj Palestine Fund II, with an expected first closing in Q3 2019. SFMC’s investments are aimed at unleashing the potential of its portfolio companies while spurring technological advancement, job creation and economic growth across Palestine. Its investment strategy captures opportunities in local and regional markets, and includes both privately-owned SMEs and publicly traded companies. SFMC capitalizes on local Palestinian talent and resources, and the extensive network offered by the General Partner, Massar International.\n\nSFMC offers a focused and dedicated team equipped with the full scope of expertise in investing in Palestine, coupled with international fund management and hands-on business management consultancy experience. The company’s dedicated staff of professionals utilize in-depth industry experience and recognized international qualifications to offer technical assistance to portfolio companies. Siraj Fund Management Company (SFMC) is the first dedicated Palestinian private equity fund manager, founded by Massar International in 2003 for the sole purpose of managing investment funds in Palestine. SFMC’s first fund, Siraj Palestine Fund I, was launched on February 3, 2011, with a value of $90 million USD. SFMC is currently raising its second fund at $90 million USD, Siraj Palestine Fund II, with an expected first closing in Q3 2019.\nSFMC’s investments are aimed at unleashing the potential of its portfolio companies while spurring technological advancement, job creation and economic growth across Palestine. Its investment strategy captures opportunities in local and regional markets, and includes both privately-owned SMEs and publicly traded companies. SFMC capitalizes on local Palestinian talent and resources, and the extensive network offered by the General Partner, Massar International.\n\nSFMC offers a focused and dedicated team equipped with the full scope of expertise in investing in Palestine, coupled with international fund management and hands-on business management consultancy experience. The company’s dedicated staff of professionals utilize in-depth industry experience and recognized international qualifications to offer technical assistance to portfolio companies.","Palestine","Palestine",null,"Private Equity","USD $5M","Diversifed sectors including financial services, healthcare, infrastructure & energy, agriculture, and industrial.","Growth; Scale","All potential companies for investment will be included in a due diligence process, which includes assessing operations, finances, team, potential, and environmental, social, and governance issues.  New investments should also support in job creation, specifically for the Palestinian population.","We do not accept if fail to pass due diliegnce process firstly, and approval of investment committee.","USD $ 2million investment","Equity"]
["ibtikarfund.com","info",{"$f":"CONCATENATE(\"info@\",A21)","v":"info@ibtikarfund.com"},"IBTEKAR Fund","PRICO House Building; 54 Khalil Abu Raea Street; Office 302; Al Masyoun, Ramallah, Palestine",null,null,"www.ibtikarfund.com","Private Equity","Ibtikar looks for motivated and skilled Palestinian entrepreneurs, from both within and outside Palestine, (however, we do expect that the majority of the operations of the companies we support to be located in Palestine). We look for ideas and startups that are scalable and that serve a MENA region or global need.","Palestine","Palestine",null,"Private Equity",null,"We invest in highly-skilled and complementary management teams that are willing to take risks and go out of their comfort zones. If you’ve never launched a company before, expect to work the hardest you have ever worked, to have good and bad days, to be challenged and to be inspired. Launching a company is not easy but it will be one of the most rewarding experiences of your life.","Early Stage",null,"Weak team, industry space difficult to penetrate, low scalability","USD 40K","Grants; Equity"]
["bader.ps","info","info@bader.ps","Bader ICT Incubator","Rawabi 666, Palestine Al-Kawthar St., Al-Balou'; Ramallah/Al-Bireh Palestine","info@bader.ps","(+) 972 2 295 7555","www.bader.ps","Incubator; Accelerator","Bader ICT Incubator is a Palestinian Entrepreneurs' ICT Incubator, with focus on innovation and pioneering new ICT companies in the ICT sector. Bader's mission is to stimulate new ICT and ICT related start-ups, and foster growth by investing in these companies. At Bader, we offer entrepreneurs funding and business resources, mentors and business connections regionally and globally. This results in further job creation, encourages economic growth, and enhances both Rawabi's and Palestine's global mark in the ICT sector. Bader ICT incubator will accelerate the successful development of entrepreneurial ICT and ICT-related companies through an array of business support resources and services. Our main goal is to produce successful firms that leave the incubator financially viable and freestanding, create jobs, commercialize Technology and strengthen the Palestinian Economy.","Palestine","Palestine","Willing to receive proposal from sustainable entrepreneurs to support ICT innovative solutions.","Equity investments",null,"ICT and ICT related initiatives.","Ideation; Early Stage","Strong founding team that has the right skills and passion to succeed, competitive advantage to product/service, Palestinian founders, scabality for exponential growth (typically, this means markets outside of Palestine, at least regionally).","Must incorporate innovative technologies","At the seed level, USD 40K. At growth stage, avg is USD 200K","Grants; Equity"]
["picti.ps","info","info@picti.ps","PICTI","Gaza: Capital Mall – Fifth Floor– Al-Remal Gaza: AL-Sourani Building – Behind Al-Shifa’ Hospital;","info@picti.ps","(+) 97082840804","http://picti.ps/","Incubator","Palestine’s Information and Communications Technology Incubator (PICTI), is the first Non-Profit ICT incubator in Palestine which was founded in 2004. PICTI provides sustainable channeling between startups, accelerators, and investors at both the local and international levels including the Palestinian Diaspora.","Palestine","Palestine","Yes, already supported green and social entrepreneurs","Grants",null,"No specific sector focus.","Ideation; Early Stage",null,null,null,"Grants"]
["bankofpalestine.com","info","cs@bankofpalestine.com","Bank of Palestine","Ramallah: Ain Misbah","cs@bankofpalestine.com",null,"https://www.bankofpalestine.com/en","Bank","Bank of Palestine was established in 1960 with the view of promoting financial services in Palestine, financing projects and fulfilling the financial and banking needs of the different economic and social segments of the Palestinian society.","Palestine","Palestine","Through Ibtikar fund we are investing in innovation. The bank also has a special budget to finance SME's and green loans each year as its part of our mission to develop green enviroment in palestine and encorage energy effeciency.","Loans",null,"All sectors including industry; Tourism; Agriculture.","Growth","Experience , visibility study , business plan and collateral.","Unclear Vision for the project and its importance to the market","5000 Dollar for SME's and for Micro 1000 Dollar","Loans"]
["tnb.ps","info","digitalsupport@tnb.ps","TNB National Bank","Headquarters: Ramallah, Al-Masyoun P.O. Box 700","digitalsupport@tnb.ps","02 2946090","www.tnb.ps","Bank","The National Bank, listed on the Palestine Securities Exchange, under ticker symbol”TNB”, is Palestine’s\nfastest growing bank and one of the country’s most trusted providers of comprehensive financial services.\nBorn from a merger between Al Rafah Microfinance Bank and the Arab Palestinian Investment Bank in 2012,\nThe National Bank has progressively transformed itself from a microfinance banking institution into a universal\nbanking solutions and premium corporate, retail and\ninvestment banking services provider. With a paid-up\ncapital of $75 million, The National Bank has secured its\nposition as one of Palestine’s five largest banks and has\nmaintained its history of strong performance to achieve\nan over 80% average annual growth in deposits and\ncredit facilities, high levels of liquidity (loan-to-deposit\nratio) and a robust 17.91% capital adequacy ratio. In\nFebruary 2015, and in a groundbreaking transaction,\nTNB acquired Bank al Etihad’s operations in Palestine to\nbecome the first Palestinian bank on record to acquire\nthe operations of a Jordanian bank.The National Bank, listed on the Palestine Securities Exchange, under ticker symbol”TNB”, is Palestine’s\nfastest growing bank and one of the country’s most trusted providers of comprehensive financial services.\nBorn from a merger between Al Rafah Microfinance Bank and the Arab Palestinian Investment Bank in 2012,\nThe National Bank has progressively transformed itself from a microfinance banking institution into a universal\nbanking solutions and premium corporate, retail and\ninvestment banking services provider. With a paid-up\ncapital of $75 million, The National Bank has secured its\nposition as one of Palestine’s five largest banks and has\nmaintained its history of strong performance to achieve\nan over 80% average annual growth in deposits and\ncredit facilities, high levels of liquidity (loan-to-deposit\nratio) and a robust 17.91% capital adequacy ratio. In\nFebruary 2015, and in a groundbreaking transaction,\nTNB acquired Bank al Etihad’s operations in Palestine to\nbecome the first Palestinian bank on record to acquire\nthe operations of a Jordanian bank.","Palestine","Palestine",null,"Loans",null,"Women led business; Agricuture; All economic sectors.","Growth","Feasibility study, cash flow statement, experience.","Bad credit history , deficit cash flow , lace collaterals , sectors ,",null,"Loans"]
["reef.ps","info","info@reef.ps","Reef","Headquarters: Al- Masayef, Al- Qasr bld. 1 st floor","info@reef.ps","(+) 970 2 2951071","http://www.reef.ps","Microfinance Institution","Reef Finance Company (Reef) is a rural financial institution, established in June 2007 as a private not-for-profit company and started its lending operations in January 2008. Reef Finance provides financial services to Palestinian people; individuals or groups, with limited income, who engage in different economic sectors and to focus largely on the agricultural sector. To this end, Reef Finance targets the following categories:\n• Farmers; the individuals who take from agriculture a profession and/ or cooperative agricultural societies and/ or associations and/ or agricultural unions.\n• Cooperatives and working in the rural Palestinian areas\n• Members of cooperatives and associations.\n• Entrepreneurs.\n• Women\n• The productive enterprises and economic activities of various economic sectors specifically agricultural businesses.\n• Collectively owned business projects.\n• Graduates from universities and institutes from different disciplines specifically graduates of college of agriculture.\n• Students of universities and colleges to pay tuitions.\n\nReef provides its financial services using both cash and in kind (Islamic financing tools such as Murabah … etc.) lending methodologies to cooperatives, solidarity groups and individuals.\nReef Finance Company (Reef) is a rural financial institution, established in June 2007 as a private not-for-profit company and started its lending operations in January 2008. Reef Finance provides financial services to Palestinian people; individuals or groups, with limited income, who engage in different economic sectors and to focus largely on the agricultural sector. To this end, Reef Finance targets the following categories:\n• Farmers; the individuals who take from agriculture a profession and/ or cooperative agricultural societies and/ or associations and/ or agricultural unions.\n• Cooperatives and working in the rural Palestinian areas\n• Members of cooperatives and associations.\n• Entrepreneurs.\n• Women\n• The productive enterprises and economic activities of various economic sectors specifically agricultural businesses.\n• Collectively owned business projects.\n• Graduates from universities and institutes from different disciplines specifically graduates of college of agriculture.\n• Students of universities and colleges to pay tuitions.\n\nReef provides its financial services using both cash and in kind (Islamic financing tools such as Murabah … etc.) lending methodologies to cooperatives, solidarity groups and individuals.\n","Palestine","Palestine","• Reefona; Agricultural sector and the sectors that complementary to agricultural sector; value chain.\n• Mostaqbali; Commerce and manufacturing, professions business projects and crafts such as carpenter, metal work, tailoring, hair dressers, … ect.\n• Cooperative projects.\n• Collectively owned business projects; Employment and Income generating projects from all economic sectors, provide loans to group of youth to start or grow up business project, collectively owned workers / farmers….etc as well as partnerships businesses.\n• House improvements; Housing improvements loans in rural areas.\n• My Family; Consumption• Reefona; Agricultural sector and the sectors that complementary to agricultural sector; value chain.\n• Mostaqbali; Commerce and manufacturing, professions business projects and crafts such as carpenter, metal work, tailoring, hair dressers, … ect.\n• Cooperative projects.\n• Collectively owned business projects; Employment and Income generating projects from all economic sectors, provide loans to group of youth to start or grow up business project, collectively owned workers / farmers….etc as well as partnerships businesses.\n• House improvements; Housing improvements loans in rural areas.\n• My Family; Consumption.","Micro-loans",null,"To be a leading company of the largest microfinance companies in Palestine, develops and offers microfinance products to different sectors and segments and focuses its services on rural areas, farmers and the poor. Reef’s financing activities aim at creating jobs and promoting sustainable economic development in the country, especially agricultural and rural development.","Growth","To be in the growth phase of the business stage development.","Social/ personal guarantors","No minimum investment required","Micro-loans"]
["vitas.ps","info",{"$f":"CONCATENATE(\"info@\",A27)","v":"info@vitas.ps"},"VITAS","Ramallah- abu iyad str. ( GIZ buliding)",null,null,"http://www.vitas.ps/","Microfinance Institution","Vitas Palestine was established in 2014 and was launched in 01.01.2015. It is considered as an extension to Ryada program for lending and financial services, which was established in 1995 as one of the most important specialized programs in providing housing loans and small business development loans in the Palestinian territories for Global Communities (formerly known as CHF International). Vitas Palestine seeks to enable all people with a desire and capacity to improve their lives to have access to the financial services they need to help them realize their potential and become full social and economic participants in their communities. It also endeavors to provide financial products and services that meet the needs of its customers and enhance the long-term development for individuals, businesses, families and communities among which they live.","Palestine","Palestine",null,"Micro-loans","4500$ loan /9000+ loans","Non- bankable people.","Early Stage; Growth","Experience more than 12 months / ability and Willingness to repay the loan.","Use of the loan for personal issues / financing should not cover more than 50% of the total investor","25% for start up / 50% for existing.","Micro-loans"]
["faten.org","info"," Info@faten.org","Faten","P.O Box: 2446, Altereh, Ramallah, Palestine"," Info@faten.org","1700- 999- 555","www.faten.org","Microfinance Institution","The Palestine for Credit and Development, known as Faten was established in 1999 in order to assist poor people to set up and develop their business by providing a range of financial services, Faten was registered at the ministry of National economy as a non-profit private shareholding company and works under the supervision of Palestine Monetary Authority. It has expanded rapidly to become one of the largest Microfinance institutions in MENA region; it has 38 branches spread throughout the country employs 300 full-time staff with more than 42,000 active borrowers and an outstanding loans portfolio of more than $120 million.   Faten had a market share of 54 per cent of Palestinian Microfinance at the end of 2016. Since establishment, the total number of loans disbursed reached 190,231 with a total disbursed portfolio of US$430m. Women account for 45% of the number of disbursed loans. Although Faten has been affected by the political crises it has managed to increase the outreach to rural areas and marginalized segment. Faten is the first financial institution in Palestine that operates their services in a refugee camps. Faten believes that the combined efforts of the Palestinian Authority, microfinance institutions and decision makers in the community, along with local and international community institutions,  capable of achieving  the goals of the industry, which maintain the continuity and success  of the small business and enhance their productivity by maintaining microfinance products.","Palestine","Palestine","Green loans available.","Micro-loans; Commercial loans; Islamic finance.",null,"FATEN shows interest and initiative in confronting and solving problems, obstacles and contribute to the development of society. FATEN always volunteers to contribute to the creation of a better society and environment, with continuous commitment to act ethically, contributing to economic development and improving the quality of life of individuals and their families in general.","Growth",null,null,null,"Loans"]
["bfpme2012.wixsite.com","info","info@bfpme.com.tn","BFPME","34, Rue Hédi Karray Centre Urbain Nord - El Menzah IV – 1004 – Tunis","info@bfpme.com.tn","(+) 216 70 102 200","https://bfpme2012.wixsite.com/bfpme","Bank","Créée le 1er mars 2005, la BFPME exerce son activité dans le cadre de la loi n° 2001-65 du 10 juillet 200\nL’intervention de la BFPME porte sur le financement de : la création des PME dont le coût d’investissement total est compris entre 100 mDT et 10 Millions de DT.\nL’extension des PME existantes, à condition qu’elles soient financièrement saines, et que leurs immobilisations nettes, augmentées des investissements projetés, se situent entre 100 mille et 10 millions de dinars.","Tunisia","Tunisia","Une attention particulière aux projets innovants et opérants dans les secteurs suivants :\nBiotechnologies; Economie d’énergie; Energies renouvelables;\nEnvironnement; Nouvelles Technologies de l’Information & de la Communication.","Loans","Entre 100 mille et 10 millions de dinars.","Une attention particulière aux projets innovants et opérants dans les secteurs suivants : Biotechnologies; Economie d’énergie; Energies renouvelables;","Growth",null,"La BFPME ne finance pas :\n    L’exploitation ;\n    Les projets promus par des personnes physiques (L’activité de financement est limitée aux personnes morales) ;\n    L’ acquisition de terrains.\n    Tourisme au cas où la composante hébergement est prédominante\n    Promotion immobilière à usage d'habitationLa BFPME ne finance pas :\n    L’exploitation ;\n    Les projets promus par des personnes physiques (L’activité de financement est limitée aux personnes morales) ;\n    L’ acquisition de terrains.\n    Tourisme au cas où la composante hébergement est prédominante\n    Promotion immobilière à usage d'habitation",null,"Loans"]
["bts.com.tn","info","BTS@bts.com.tn","BANQUE TUNISIENNE DE SOLIDARITE (BTS)","56, AV Mohamed V 1002 Tunis","BTS@bts.com.tn","71 844 040","http://www.bts.com.tn/","Bank","La Banque Tunisienne de Solidarité (BTS) est la première banque tunisienne spécialisée dans le financement de petits projets par le biais du financement direct ou via les Associations de Micro-Crédits(AMCs). Elle octroie ses crédits, sans exiger des garanties réelles ou personnelles, à un taux d’intérêt annuel de 5 %, le plus faible du marché.","Tunisia","Tunisia","L’économie verte constitue pour la BTS un axe stratégique\nLa BTS à réservé à ce volet une ligne de financement spécifique et a établi des conventions de partenariat avec plusieurs organismes nationaux et internationaux.L’économie verte constitue pour la BTS un axe stratégique\nLa BTS à réservé à ce volet une ligne de financement spécifique et a établi des conventions de partenariat avec plusieurs organismes nationaux et internationaux.","Loans; Micro-crédit; Crédit-vert; Crédit Agri-Saison; Finance islamique.","Entre 20 mille et 150 millions de dinars","Industries services; Technologie, Innovation agricole; Energies renouvelables.","Growth","Les bénéficiaires sont pour la plupart des jeunes qualifiés; diplômés de l’enseignement supérieur ou de la formation professionnelle ne disposant pas de moyens financiers ou de garanties mais d’une volonté ferme et d’un engouement à l’entreprenariat, la prise en charge de soi-même pour la réussite de leur projet.","La BTS ne finance pas les projets commerciaux",null,"Loans; Micro-crédit; Crédit-vert; Crédit Agri-Saison; Finance islamique."]
["biat.tn","info",{"$f":"CONCATENATE(\"info@\",A31)","v":"info@biat.tn"},"Banque Internationale Arabe de Tunisie BIAT"," 70-72 AV. HABIB BOURGUIBA – Tunis",null,null,"www.biat.tn","Bank","Créée en 1976, la BIAT – Banque Internationale arabe de Tunisie – est aujourd’hui la première banque du pays et se classe au premier rang sur de nombreux indicateurs. Elle représente 16 % de part de marché, en moyenne, sur le panel des dix premières banques de la place en termes de dépôts.","Tunisia","Tunisia","Une attention particulière aux projets innovants et opérants dans les secteurs suivants :\nBiotechnologies; Economie d’énergie; Energies renouvelables;\nEnvironnement; Nouvelles Technologies de l’Information & de la Communication.","Crédit","Un financement à hauteur d’un maximum de 70% du projet (fonds de roulement inclus) pour les investissements dans les secteurs susvisés n’ayant pas bénéficié d’une décision d’octroi d’avantages.","Industries services; Technologie; Innovation.","Growth","Une étude de rentabilité économique, commerciale et financière de votre projet sur la base du dossier instruit par votre conseiller BIAT, permettra de déterminer vos besoins en matière de financement en fonction de vos garanties proposées.","Les garanties exigées par la banque",null,"Crédit"]
["attijaribank.com.tn","info","courrier@attijaribank.com.tn","ATTIJARI Bank","SIÈGE Social : 24, rue Hédi Karray Centre Urbain Nord - 1080 Tunis ","courrier@attijaribank.com.tn","(+) 216 70 012 000","http://www.attijaribank.com.tn/","Bank","Attijari bank Tunisie est une banque tunisienne universelle qui possède le premier réseau bancaire en Tunisie, 206 agences et centres d’affaires. En 2016, la banque a été élue, pour la troisième année consécutive, la banque de l’année en Tunisie « Bank of The Year - Tunisia » par le prestigieux magazine The Banker. ","Tunisia","Tunisia","Une attention particulière aux projets innovants et opérants dans les secteurs suivants :\nBiotechnologies; Economie d’énergie; Energies renouvelables;\nEnvironnement; Nouvelles Technologies de l’Information & de la CommunicationUne attention particulière aux projets innovants et opérants dans les secteurs suivants :\nBiotechnologies; Economie d’énergie; Energies renouvelables;\nEnvironnement; Nouvelles Technologies de l’Information & de la Communication.","Crédit","Un financement à hauteur d’un maximum de 70% du projet (fonds de roulement inclus) pour les investissements dans les secteurs susvisés n’ayant pas bénéficié d’une décision d’octroi d’avantages.","Industries services; Technologie; Innovation.","Growth","Une étude de rentabilité économique, commerciale et financière de votre projet sur la base du dossier instruit par votre conseiller BIAT, nous permettra de déterminer vos besoins en matière de financement en fonction de vos garanties proposées.","Les garanties exigées par la banque.",null,"Crédit"]
["bna.tn","info","bna@bna.tn","Banque Nationale Agricole BNA","Avenue Mohamed V Bab Bhar 1002 Tunis","bna@bna.tn"," 71 321 237 - 71 321 464 - 71 322 185 - 71 322 408","http://www.bna.tn/","Bank","Depuis sa création en 1959, la BNA figure en avant-garde sur la scène économique et financière, et n’a cessé de se confirmer sur la place financière non seulement comme une banque de financement de l’agriculture, mais aussi comme une banque universelle, citoyenne, moderne et davantage proche des Tunisiens. Au cours de son demi-siècle d’existence, la BNA a su s’adapter aux différentes mutations et restructurations qu’a connues l’économie tunisienne et aux exigences de la modernisation et de la libéralisation du secteur bancaire ; ce qui a facilité son adhésion aux différents programmes et plans adoptés dans ce sens par les instances financières et économiques.\nCe parcours, fort remarquable, n’a fait que consolider les fondamentaux de croissance équilibrée tout en garantissant à la BNA la notoriété et la compétitivité et, par conséquent, assurer un positionnement stratégique la rapprochant des normes internationales.\nRiche de son expérience et de sa modernité, la BNA demeure un acteur incontournable de la réussite personnelle et professionnelle, particulière et nationale.","Tunisia","Tunisia","Une attention particulière aux projets innovants et opérants dans l'agricolture\n","Crédit",null,"Infrastructure & Bâtiments d’Exploitation; Création de Forage; Création de Puits de Surface; Equipements Hydrauliques; Equipements Agricoles, d’Elevage & Matériel Roulant; Plantations; Barques et Équipements de Pêche; Elevage des Génisses Laitières; Création d’une Unité d’Elevage Aquacole.","Growth","Avoir l'expérience et la qualification requises; Justifier d'une capacité de remboursement suffisante; Etre en situation régulière avec la BNA; Disposer des garanties nécessaires et de l'autofinancement exigé.","Les garanties exigées par la banque.",null,"Crédit"]
["ubci.tnentreprises","info",{"$f":"CONCATENATE(\"info@\",A34)","v":"info@ubci.tnentreprises"},"UBCI Banque","139, Avenue de la liberté 1002 TUNIS",null,"81 100 000","www.ubci.tn/entreprises/","Bank","L'Union bancaire pour le commerce et l'industrie ou UBCI est une banque commerciale tunisienne fondée en décembre 1961. L’UBCI dispose aujourd’hui d’un réseau de 111 Agences opérant au cœur même des principaux centres économiques de la Tunisie.","Tunisia","Tunisia",null,"Crédit",null,"Industries services; Technologie; Innovation.","Growth","Une étude de rentabilité économique, commerciale et financière de votre projet sur la base du dossier instruit, permettra de déterminer les besoins en matière de financement en fonction de vos garanties proposées.","Les garanties exigées par la banque.",null,"Crédit"]
["sagescapital.com","info","contact@sagescapital.com","Sages Capital","B5 et B6 Immeuble Molka, (Bloc B), Rue de la Bourse, Les jardins du Lac\n1053 Les Berges du Lac Tunis","contact@sagescapital.com","(+) 216 71 197 920","www.sagescapital.com","Capital risque","SAGES CAPITAL est une société de gestion de fonds, créée en 2006 sous forme de société anonyme avec un capital actuel de 500 mille dinars. Depuis 2010, SAGES Capital est passée au statut d’entreprise à participation publique gérée selon les règles de management privé, suite à l’entrée de nouveaux actionnaires privés. SAGES CAPITAL gère à ce jour 14 fonds d’investissement.","Tunisia","Tunisia",null,"Equity investments",null,"L’innovation; L’aquaculture.","Growth; Scale",null,null,null,"Capital risks"]
["reseau-entreprendre-tunisie.org","info",{"$f":"CONCATENATE(\"info@\",A36)","v":"info@reseau-entreprendre-tunisie.org"},"Réseau Entreprendre  ","Immeuble Vermeg, Rue du Lac Biwa Les Berges du Lac1053 Tunis",null,"(+) 21671160600","http://www.reseau-entreprendre-tunisie.org","Public opportunity","Réseau Entreprendre fédère des associations de chefs d'entreprise soucieux de contribuer à la réussite d'entrepreneurs porteurs d'un projet de création ou de reprise de PME significativement créatrices d'emplois et de richesses sur leur territoire","Tunisia","Tunisia","Réseau entreprendre donne une priorité pour les projets  éco innovant.","Crédit",null,"L'accompagnement de Réseau Entreprendre s'adresse aux créateurs et repreneurs qui, par l'ambition qu'ils portent, leur potentiel entrepreneurial, leur métier et le marché auquel ils s'adressent, sont susceptibles de faire de leur entreprise, une PME apte à se développer. Plusieurs critères sont donc à remplir pour que votre projet soit \"éligible\" un prêt d'honneur de 10.000 DT à 30.000 DT, sans intérêt ni garantie.","Early Stage; Growth","Ces financements individuels sont accordés à de jeunes diplômés et aux catégories vulnérables qui ne peuvent pas s’adresser aux banques commerciales pour faute de garantie. Ils peuvent être accordés dans le cadre de projets de capacitation économique avec une approche de développement durable.","Exigé un apport personnel","10000 DT","Crédit"]
["fidelium-finance.com.tn","info","contact@fidelium-finance.com.tn","FIDELIUM FINANCE","Centre Urbain Nord imm. NOUR CITY Bloc B 1er étage N° B 1-1 1082 Tunis","contact@fidelium-finance.com.tn","(+) 21674408028","http://www.fidelium-finance.com.tn/","Private Equity","FIDELIUM FINANCE est une société de gestion de Fonds Communs de Placement à Risque tunisienne, indépendante, agréée par le Conseil du Marché Financier de Tunisie sou le n°06-2007. FIDELIUM FINANCE est actuellement détenue à 100% par ses actionnaires tunisiens. FIDELIUM FINANCE a été créée par son équipe de gestion:  Expérimentée, ayant assuré un travail collégial sur plusieurs années en contact direct avec les opérateurs de l’économie tunisienne, sur le marché local et/ou international,  Motivée par le futur prometteur de l’activité Private Equity en Tunisie, qui croit dans le potentiel économique du Site Tunisie, de par sa position géographique stratégique pour tous les opérateurs économiques étrangers ouverts sur l’Afrique.","Tunisia","Tunisia",null,"Equity investments",null,"Startups innovantes dans le domaine des nouvelles technologies de l’information.","Growth; Scale","\nFIDELIUM FINANCE prend des participations, minoritaires ou majoritaires, limitées dans le temps dans des entreprises généralement non cotées en bourse, en phase de création, développement, transmission, fusion, acquisition et redressement. Sa participation peut prendre la forme d’actions ordinaires ou à dividende prioritaire sans droit de vote, de certificats d’investissement de parts sociales, de titres participatifs, d’obligations convertibles en actions et d’une façon générale de toutes les autres catégories assimilées à des fonds propres.",null,null,"Equity"]
["zitounatamkeen.com","info","contact@zitounatamkeen.com","Zitouna Tamkeen","Les Berges du lac 3 Zone industrielle Kheiredine - Le Kram","contact@zitounatamkeen.com","(+216) 70 148 800","www.zitounatamkeen.com","Microfinance Institution","Zitouna Tamkeen, première institution de microfinance Islamique en Tunisie, s’est donnée pour mission de favoriser l’inclusion financière et économique des jeunes diplômés et des populations défavorisées.\nElle a choisi ses actionnaires parmi les acteurs les plus influents du milieu économique et financier et qui accordent un grand intérêt à l’économie sociale et solidaire.\nZitouna Tamkeen s’est fixée des objectifs ambitieux en matière de projets de capacitation économique, de développement durable, du développement de la microfinance islamique, de couverture progressive des régions par le biais des agences fixes et des agences mobiles, d’interventions dans les secteurs d’activité porteurs et du renforcement des capacités des micro-entrepreneurs. Le modèle économique adopté par Zitouna Tamkeen, promeut la rentabilité et la pérennité des microprojets pour les bénéficiaires.","Tunisia","Tunisia",null,"Micro-crédit; Capacity building.",null,"Les interventions concerneront la plupart des secteurs d’activité et en particulier l’agriculture,  les services , l’industrie , le commerce et l’artisanat .","Early Stage; Growth","Zitouna Tamkeen jouera le rôle de liaison entre l’amont (Production) et l’aval (Commercialisation) dans une Chaine de Valeur. Le financement des projets de capacitation économique renforcera les différents maillons des filières et favorisera la synergie entre les différents acteurs des chaines de valeur. Un pilier fondamental de l’approche de la Capacitation Economique est d’assurer la pérennité des micro-projets. Ainsi, Zitouna Tamkeen conclura des partenariats d’affaires avec des partenaires stratégiques et économiques afin de les mettre en relation avec les futurs micro-entrepreneurs.",null,null,"Micro-crédit"]
["microcred.com","info","contact-tunisie@baobab.bz","Micro Cred Baobab group","65, Avenue Alain Savary, 1002 Tunis","contact-tunisie@baobab.bz","80 10 20 00","microcred.com/tn/emprunter","Microfinance Institution","Microcred Babobab Tunisie a pour mission d’offrir des services financiers accessibles et de qualité ainsi qu’un accompagnement adapté aux personnes exclues ou mal servies par le système financier classique.","Tunisia","Tunisia","Special attention to sustainable and social business.","Micro-crédit",null,"Les petits et micro entrepreneurs agissant dans divers types d’activités génératrices de revenus et créatrices d’emploi à qui Microcred offre une gamme de produits financiers de qualité et sur mesure essentiellement le crédit TPE, allant jusqu’à 20 000 DT, destiné aux activités déjà existantes et leurs permettant le renforcement de leurs stock, l’acquisition de nouveaux équipements, la garantie d’un fond de roulement.","Early Stage; Growth","Le crédit Baobab est plafonné à 20 000 DT avec une durée de remboursement maximale de 36 mois selon la nécessité du projet.","Le garant doit avoir une situation financière stable (salarié titulaire ou entrepreneur), il ne doit pas partager la même habitation que le demandeur du crédit.",null,"Micro-crédit; Capacity building"]
["endatamweel.tn","info","info@endatamweel.tn","Enda tamweel","Rue de l’Assistance, cité El Khadra, Tunis. Tunisie, Tunis 1003","info@endatamweel.tn","71 80 40 02","www.endatamweel.tn","Microfinance Institution","Enda Tamweel est une société de micro-finance tunisienne créée par l’organisation non-gouvernementale Enda inter-arabe, pionnière du secteur de la micro-finance en Tunisie. Enda Tamweel œuvre pour l’inclusion financière des populations vulnérables, notamment les femmes et les jeunes.","Tunisia","Tunisia","Fidèle à sa vocation environnementale, Enda tamweel propose divers produits dédiés aux personnes opérant dans des activités protectrices de l’environnement.","Micro-crédit",null,"Les interventions concerneront la plupart  des secteurs d’activité et en particulier l’agriculture,  les services , l’industrie , le commerce et l’artisanat .et entre autres l’entrepreneuriat Verte.","Early Stage; Growth","La cible principale de Microcred Tunisie est la TPME ; les petits et micro entrepreneurs agissant dans divers types d’activités génératrices de revenus et créatrices d’emploi à qui Microcred offre une gamme de produits financiers de qualité et sur mesure essentiellement le crédit TPE, allant jusqu’à 20 000 DT, destiné aux activités déjà existantes et leurs permettant le renforcement de leurs stock, l’acquisition de nouveaux équipements, la garantie d’un fond de roulement.","Ces produits sont proposés à des tarifs préférentiels.","1000 DT","Micro-crédit"]
["advanstunisie.com","info","contact@advanstunisie.com","Advanstunisie","Adresse: 10, rue de Grèce - 1001 – Tunis","contact@advanstunisie.com",36410510,"www.advanstunisie.com","Microfinance Institution","Advans Tunisie est une institution de microfinance.","Tunisia","Tunisia",null,"Micro-crédit",null,"Les interventions concerneront la plupart  des secteurs d’activité et en particulier l’agriculture,  les services , l’industrie , le commerce et l’artisanat.","Early Stage; Growth",null,null,null,"Micro-crédit"]
["cfe.com.tn","info",{"$f":"CONCATENATE(\"info@\",A42)","v":"info@cfe.com.tn"},"Centre Financier aux Entrepreneurs CFE","33, Rue d'Italie, 1000 Tunis, Tunisie","info@cfe.com.tn",null,"www.cfe.com.tn","Microfinance Institution","Le Centre Financier aux Entrepreneurs - Tunisie S.A. est une institution de microfinance qui vise à accroître l’accessibilité des services financiers professionnels aux micros et petits entrepreneurs afin de contribuer à la prospérité durable, à l’émergence du secteur privé et à l’amélioration des conditions de vie des Tunisiens. Détenu par des investisseurs locaux et internationaux, le CFE se distingue par son accompagnement spécialisé pour les entrepreneurs et par son emphase sur le développement local. Pionner dans son secteur, le Centre Financier aux Entrepreneurs - Tunisie siège actuellement au cœur de Tunis, et compte s’implanter localement par l’établissement de succursales et de points de service dans les régions de Sfax et de Sousse. CFE Tunisie est mis en place par Développement international Desjardins (DID), une composante du Mouvement Desjardins.","Tunisia","Tunisia","Fidèle à sa vocation environnementale, CFE propose divers produits dédiés aux personnes opérant dans des activités protectrices de l’environnement.","Micro-crédit",null,"Les petits et micro entrepreneurs agissant dans divers types d’activités génératrices de revenus et créatrices d’emploi.","Early Stage; Growth",null,null,null,"Micro-crédit"]
["cba.tn","info","carthage.businessangels@facebook.com","Carthage Business Angels CBA","Rue du Lac Constance\n1053 Le Berges du Lac, Tunis","carthage.businessangels@facebook.com",null,"http://www.cba.tn","Business Angels","Carthage Business Angels est un réseau de d'investisseurs qui aider des entreprises qui innovent et qui ont besoin de capitaux pour faire aboutir leurs projets ou les résultats de leurs recherches.","Tunisia","Tunisia","Carthage business Agnels donne une priorité pour les projets éco innovant.","Equity investments",null,"Carthage Business Angels, en tant qu'association d'investisseurs, financent les besoins de la future entreprise, et ce dès les phases préliminaires de son lancement, en l’accompagnant (comme un associé) durant la phase de murissement, voire durant celle de son développement.","Early Stage","Finance l’entreprise dans la phase la plus critique, la plus risquée.  Renforce la crédibilité du projet vis-à-vis des autres financeurs.  Permet la mutualisation du risque d’investissement avec d’autres investisseurs  donne accès à une expertise pour faciliter la décision d’investissements  permet d’assurer une meilleure gouvernance de l’entreprise.","Exigé un apport personnel","20 000 DT jusqu’à 500 000 DT  ","Equity"]
["wikistartup.tn","info","info@wikistartup.tn","Wiki Start Up","Carthage Center, Rue du Lac Constance 1053 – Les Berges du Lac – Tunis","info@wikistartup.tn","(+2) 1671 964 412","http://wikistartup.tn","Incubator; Business Angel","We are a group of Veteran Entrepreneurs who decided to use our expertise, experience, as well as our network and resources for the benefit of the start-ups community in Tunisia. Wiki Start Up is backed by a Business Angels group, www.cba.tn, and together we are implementing programs to generate innovative projects with high growth potential. For that purpose, we launched a pre-seed fund to finance feasibility studies and prototypes at the early stage phase.","Tunisia","Tunisia","Eco innovation.","Equity investments",null,"Wiki stuart up offre un accompagnement stratégique et marketing et une assistance pour la levée de fonds auprès des institutions financières et organismes étatiques.","Early Stage; Growth","Wiki Start up Incubateur d’entreprises innovantes dont la vocation est d’apporter une solution concrète et efficace à des jeunes porteurs d’idées, dont l’objectif est d’accéder à un réseau professionnel susceptible de faciliter leur insertion au niveau du marché d’une manière brillante et efficace, tout en leur apportant. un accompagnement stratégique et marketing et une assistance pour la levée de fonds auprès des institutions financières et organismes étatiques.",null,null,"Equity"]
["fastercapital.com","info",{"$f":"CONCATENATE(\"info@\",A45)","v":"info@fastercapital.com"},"Faster Capital","5th floor, Office B5-4, Tower B, Yasmin Tower, North Urban Center, Tunis, Tunisia, 1082",null,"(+) 21671948028","http://www.fastercapital.com","Incubator; Accelerator","FasterCapital se présente en tant que nouveau type d’accélérateur qui se distingue par un business model innovant, basé sur une implication effective et un accompagnement intégré en assurant à la fois le mentoring, le co-financement et la co-fondation.","Tunisia","Tunisia","FasterCapital donne une priorité pour les projets éco innovant.  ","Equity investments","FasterCapital se présente en tant que nouveau type d’accélérateur qui se distingue par un business model innovant, basé sur une implication effective et un accompagnement intégré en assurant à la fois le mentoring, le co-financement et la co-fondation.","Cet incubateur accompagne les promoteurs durant la validation de l'idée, l'étude de faisabilité, l'analyse du marché et le développement des produits. Il vous aide également à réaliser vos ventes et à établir une bonne stratégie marketing et vous fournit un mentorat et une aide financière jusqu'à ce que vous ayez un \"cash flow\" positif.","Ideation; Early Stage; Growth","FasterCapital vous fournit 50% de l'investissement requis pour démarrer votre startup allant de 20.000 à 500.000 dollars..",null,null,"Equity; Capacity building"]
["flat6labstunis.com","info","tunis@flat6labs.com","Flat6Labs Tunisie","Le15, Rue De Carthage, Tunis\n\n","tunis@flat6labs.com",null,"https://www.flat6labstunis.com/","Incubator; Accelerator","Flat6Labs Tunis est un programme d’amorçage et de démarrage de startups cherchant à promouvoir la croissance des startups tunisiennes et à fournir une source d’approvisionnement à l’industrie du Capital Risque en Tunisie.","Tunisia","Tunisia; Egypt; Lebanon",null,"Equity investments","Investissement moyen d’environ 80,000 à 100,000 dinars tunisiens par startup en cash et en services pour une action de 10 à 15% dans l’entreprise..","Le programme accueillera des idées et des startups dans les secteurs de l’innovation et de l’économie de la connaissance tels que (mais non exclusivement) : les technologies de l'éducation, de l’énergie, des transports, des services financiers, de l'information et de la communication; l’électronique, les hardwares & solutions industrielles, les énergies renouvelables et autres technologies écologiques.","Ideation; Early Stage; Growth",null,null,null,"Equity; Capacity building"]
["gbp.ma","info",{"$f":"CONCATENATE(\"info@\",A47)","v":"info@gbp.ma"},"Banque Centrale Populaire (BCP)","101, boulevard Mohamed Zerktouni – BP 10.622 - 20100- Casablanca",null,null,"www.gbp.ma","Bank","La Banque Centrale Populaire (BCP) est un établissement de crédit, sous forme de société anonyme à Conseil d’Administration. Elle est cotée en bourse depuis le 8 juillet 2004.","Morocco","Morocco","ECO ENERGY INVEST est une solution de financement qui s’adresse aux entreprises à plus de 50% de capitaux privés.","Loans","Petits projets: montant du prêt jusqu’à 3 millions DHS.  Projets d’investissement intégrés: montant du prêt à hauteur de 50 millions DHS.","Toutes les industries de transformation (agro-industrie, textile, chimie-parachimie, mécanique, métallurgique, électrique …). • industrie minière et BTP. • hôtellerie et construction commerciale (ex : supermarchés, écoles, cliniques, …). • agriculture. • Crédit à court et moyen terme : 1- Crédit directplus : Destiné à combler les insuffisances ponctuelles de la trésorerie.  Durée = 48 mois max. avec 3 mois de différé.","Growth","Financement flexible et sur mesure. • subvention d’investissement, de 10 ou 15% du montant du prêt éligible, via des dons de l’Union Européenne. • assistance technique gratuite assurée par les consultants MorSEFF, de la phase d’application à celle d’évaluation du projet et de sa mise en œuvre.",null,null,"Crédit"]
["attijariwafabank.com","info",{"$f":"CONCATENATE(\"info@\",A48)","v":"info@attijariwafabank.com"},"Attijariwafa bank","2, BD Moulay Youssef Casablanca;",null,"(+) 212 6 47 47 35 50","http://www.attijariwafabank.com/","Bank","Attijariwafa bank, banque née de la fusion de la Banque Commerciale du Maroc et de Wafabank en 2003, est devenue la première banque au Maroc et au Maghreb et la 6 eme en Afrique. La banque  est leader dans tous les métiers de la banque et de l’assurance : Epargne, Crédits à la Consommation, Crédits Immobiliers, Crédits d’Investissement, Monétique, Trade Finance, Corporte Finance, Activités de Marché.","Morocco","Global","Financement dédiée aux programmes d’investissement visant l’amélioration de votre efficacité énergétique, quel que soit votre taille ou votre secteur d’activité,","Crédit",null,"Tous secteurs.","Growth","Le Crédit Jeunes Entreprises: destiné à financer pouvant atteindre 1.000.000 DH dans le cas d’un projet individuel et 3.000.000 DH dans le cas d’une société ou d’une coopérative: Toute personne de nationalité marocaine, ayant au moins 20 ans et au plus 45 ans à la date de la demande du prêt, présentant un projet viable de première installation ou de création. Toutefois, les projets d’extension peuvent être admis pour un nouveau prêt en cas de participation de nouveaux associés ou détenteurs de parts à condition que ces derniers soient éligibles au prêt.","Analyse de risque non conforme aux critères d'éligibilité",null,"Crédit d’investissement Macharii Effinergie; Leasing Effinergie; Crédit Rasmali Effinergie pour les TPE; Crédit Express pour financer les besoins privés."]
["bankofafrica.ma","info","relationsinvestisseurs@bankofafrica.ma","Bank of Africa (BMCE Group)","37, AVENUE 2 MARS, Casablanca","relationsinvestisseurs@bankofafrica.ma","0522 27 42 60","https://www.bankofafrica.ma/","Bank; Incubator","BMCE Bank (anciennement Banque marocaine du Commerce extérieur) est une banque commerciale marocaine filiale de l'assureur RMA Watanya; c'est la troisième banque du pays en termes de résultat et produit net bancaire. En 2015, le nombre d'agences a dépassé 1230 agences dans 31 pays, dont 697 agences au Maroc et près de 560 agences en Afrique subsaharienne.","Morocco","Global","BMCE Cap Energie est un crédit dédié aux entreprises privées afin de financer  l’acquisition d’équipements et/ou la réalisation de projets d’investissements dans l’efficacité énergétique et les énergies renouvelables. C’est une solution clé en main comprenant à la fois le financement, l’accompagnement technique gratuit et une subvention d’investissement. 2)  African Entrepreneurship Award.","Crédit; Grants.","Crédit Express: Montant maximum du crédit : 3 Millions de Dhs. Grands Projets et/ou Projets plus complexes : Montant Maximum de l’investissement : 150 millions de Dhs. ·  Subvention de 15 % du montant du crédit pour les projets suivants : Cogénération et trigénération, Projets d’énergie renouvelable avec une production supérieure à 2 KWh / an / Euro investi. Subvention de 10 % pour tous les autres projets. ·  Fournisseurs d’équipements d’Efficacité Energétique (EE) / Energies Renouvelables (ER): Montant maximum du crédit : 10 Millions de DH.","Les secteurs éligibles au crédit BMCE Cap Energie : Toute entreprise privée dans les secteurs suivants : Industrie (agro-industrie, chimie/parachimie, métallique/ métallurgique, textile/cuir, électronique/électronique…), Tertiaire (hôtels, cliniques, écoles, etc.), Transport, Projets autonomes d’ER de petite taille.Les secteurs éligibles au crédit BMCE Cap Energie : Toute entreprise privée dans les secteurs suivants : Industrie (agro-industrie, chimie/parachimie, métallique/ métallurgique, textile/cuir, électronique/électronique…), Tertiaire (hôtels, cliniques, écoles, etc.), Transport, Projets autonomes d’ER de petite taille.Les secteurs éligibles au crédit BMCE Cap Energie : Toute entreprise privée dans les secteurs suivants : Industrie (agro-industrie, chimie/parachimie, métallique/ métallurgique, textile/cuir, électronique/électronique…), Tertiaire (hôtels, cliniques, écoles, etc.), Transport, Projets autonomes d’ER de petite taille.Les secteurs éligibles au crédit BMCE Cap Energie : Toute entreprise privée dans les secteurs suivants : Industrie (agro-industrie, chimie/parachimie, métallique/ métallurgique, textile/cuir, électronique/électronique…), Tertiaire (hôtels, cliniques, écoles, etc.), Transport, Projets autonomes d’ER de petite taille.Les secteurs éligibles au crédit BMCE Cap Energie : Toute entreprise privée dans les secteurs suivants : Industrie (agro-industrie, chimie/parachimie, métallique/ métallurgique, textile/cuir, électronique/électronique…), Tertiaire (hôtels, cliniques, écoles, etc.), Transport, Projets autonomes d’ER de petite taille.Les secteurs éligibles au crédit BMCE Cap Energie : Toute entreprise privée dans les secteurs suivants : Industrie (agro-industrie, chimie/parachimie, métallique/ métallurgique, textile/cuir, électronique/électronique…), Tertiaire (hôtels, cliniques, écoles, etc.), Transport, Projets autonomes d’ER de petite taille.Les secteurs éligibles au crédit BMCE Cap Energie : Toute entreprise privée dans les secteurs suivants : Industrie (agro-industrie, chimie/parachimie, métallique/ métallurgique, textile/cuir, électronique/électronique…), Tertiaire (hôtels, cliniques, écoles, etc.), Transport, Projets autonomes d’ER de petite taille.Les secteurs éligibles au crédit BMCE Cap Energie : Toute entreprise privée dans les secteurs suivants : Industrie (agro-industrie, chimie/parachimie, métallique/ métallurgique, textile/cuir, électronique/électronique…), Tertiaire (hôtels, cliniques, écoles, etc.), Transport, Projets autonomes d’ER de petite taille.","Early Stage; Growth",null,null,null,"Crédits d'investissements: 70% de votre programme d’investissement sur une durée pouvant atteindre 15 ans. Crédit Jeune Entreprise: financer 90% au maximum du coût du programme d'investissement agrée; ne doit pas excéder 1 000 000 Dhs lors d’un projet individuel. Incubateur BLUE SPACE."]
["cdm.co.ma","info",{"$f":"CONCATENATE(\"info@\",A50)","v":"info@cdm.co.ma"},"Crédit du Maroc","48, bd Mohammed V - 20000  Casablanca",null,"00212 5226-09487","www.cdm.co.ma","Bank","Crédit du Maroc est une banque commerciale marocaine fondée en 1929. C'est une filiale du groupe français Crédit agricole S.A.","Morocco","Morocco","Oui","Crédits d’investissement; Leasing.","N/A","All sectors.","Growth",null,null,null,"Crédit"]
["creditagricole.ma","info",{"$f":"CONCATENATE(\"info@\",A51)","v":"info@creditagricole.ma"},"Crédit Agricol","CERCAM - Immeuble High Tech A, Avenue Annakhil, Hay Ryad, Rabat.",null,null,"https://www.creditagricole.ma","Bank","Le Crédit Agricole est une banque universelle qui finance tous les secteurs. Avec l'expertise agricole comme vocation particulière, la banque porte soutien au monde agricole et rural et propose un financement solidaire adapté à chaque projet, notamment dans le cadre des programmes d’investissement nationaux.","Morocco","Morocco","Oui, sourtout pour l'engagement dans le financement du secteur éco-innovant.","Crédit","N/A","All sectors.","Growth","Produit Bidaya: Garanties : Hypothèque ou caution hypothécaire le cas échéant ; Aval de la CCG à hauteur de 70% (DAMANE EXPRESS); Nantissement du Fonds de commerce / Nantissement du matériel à acquérir ; Délégation de créance/Assurances.   Produit Itkane : Garanties : Hypothécaire le cas échéant ","Produit Bidaya: Quotité de financement : allant jusqu'a 95% du coût avec un plafond de 1MDH par projet individuel et 2MDH pour le groupement de 2 personnes. Durée jusqu’à 15 ans y compris un différé d’amortissement de 4 ans. Produit Itkane: Quotité de financement : allant jusqu'à 80% du coût du projet avec un plafond de 200.000DH par projet et une durée jusqu’à 10 ans y compris un différé d’amortissement de 1 an maximum. Taux d’intérêt : Taux en vigueur Garanties : Hypothèque ou caution.  ·  Programme Qariati: Convention avec le Ministère du Tourisme. Mettre en place une enveloppe d’un montant d’un Milliard de Dirhams sur une durée de 5 ans pour le financement des porteurs de projets privés dans le secteur du tourisme rural.",null,"Crédit"]
["cihbank.ma","info","info@cihbank.ma","CIH Bank","187, Avenue Hassan II, Casablanca",null,4747,"www.cihbank.ma","Bank","CIH Bank a été créé en 1920 sous le nom de Caisse de prêts immobiliers du Maroc (CPIM). À la suite de l'extension de son activité au secteur hôtelier en 1967, elle change de nom pour devenir Crédit immobilier et hôtelier. Aujourd'hui, CIH Bank est devenue une banque universelle qui propose ses services sur l'ensemble des secteurs du marché bancaire.","Morocco","Morocco","Oui","Crédit","N/A","All sectors.","Growth",null,null,null,"Crédit"]
["creditconso.bmci.ma","info","info@creditconso.bmci.ma","BCMI","26 Place des Nations Unies, Casablanca, Maroc",null,null,"http://creditconso.bmci.ma/fr/credit-vert-bmci/","Bank","La BMCI dont l’actionnaire de référence est le Groupe BNP Paribas, exerce une activité de banque universelle, qui s’adresse à tout type de clientèle; Particuliers, Professionnels et Entreprises. Côté à la Bourse de Casablanca, le Groupe BMCI met à disposition de ses clients toute l’expertise et le savoir-faire de ses filiales et métiers spécialisés à travers son réseau d’agences au Maroc.","Morocco","Morocco","Une offre de crédit «Pack Vert» La BMCI propose une offre de financement aux conditions très avantageuses, dédiée au matériel ou aux travaux à caractère écologique (panneaux solaires, isolation thermique, irrigation, etc.).","Crédit; Crédit vert.","300.000 dh  maximum","All sectors.","Growth","Le crédit conso vert sert au financement de matériel écologique et de travaux économiseurs d'énergie.","Il n'y a pas d'obstacles qui puissent empêcher le financement.",null,"Crédit"]
["sgmaroc.com","info","info@sgmaroc.com","Société Générale"," Boulevard Abdelmoumen, Casablanca",null,"(+) 20250 (+)212 5224-24243","www.sgmaroc.com","Bank","La Société Générale est présente au Maroc depuis plus de 100 ans  et est devenue un groupe financier de premier plan, s’appuyant sur un modèle éprouvé de banque universelle et de synergie avec ses 14 filiales spécialisées.","Morocco","Morocco","N/A","Crédit",null,"All sectors.","Growth",null,null,null,"Financement des investissements: Crédit 1ère Installation : 1ère Installation est garanti par la CCG à hauteur de 80% pour les crédits ≤  1Million DH et 70% du montant des crédits > 1Million DH. Durée de remboursement : 7ans - PROLEASE MOBILIER : Biens finançables (Matériel roulant, informatique et bureautique, Machines- outils, médical, Equipement industriel). Financement jusqu’à 100% de votre investissement, avec un minimum de 100.000,00DH HT De 36 à 60 mois. ·  Crédit Moyen et Long Terme (CMT/CLT) : Crédit accessible aux TPE et professions libérales jusqu’à 70% de votre programme d’investissement. 10 ans maximum avec un différé de remboursement du capital pouvant aller jusqu’à 2 ans."]
["albaridbank.ma","info","Contactfin@albaridbank.ma","Albarid Bank","Angle Bd Ghandi et Bd Brahim Roudani, N° 798, Bd Ghandi – 20380, Casablanca","Contactfin@albaridbank.ma","080 200 32 32","www.albaridbank.ma","Bank","Une banque postale créée en Juin 2010 - Une portée stratégique nationale en termes d’Inclusion financière - Une Banque de Retail.","Morocco","Morocco","N/A","Crédit","50 MDH","All sectors.","Growth","Un projet innovant et bancable porté par une entreprise sérieuse qui présente des garanties fiables. Un business plan bien ficelé qui prévoit des retombées sociales, économiques et écologiques.",null,null,"Titres obligataires."]
["reseau-entreprendre-tunisie.org","info","info@reseau-entreprendre-tunisie.org","Réseau entreprendre","Immeuble Ichrake, n°17, 24002, Avenue Mohamed VI, El Jadida– Maroc",null,null,"reseau-entreprendre-tunisie.org","Public opportunity","La  mission de Réseau entreprendre Maroc est de  contribuer à la réussite de nouveaux entrepreneurs significativement créateurs d'emplois et de richesses, et permettre un apprentissage du métier de chef d'entreprise dans un milieu de chefs d'entreprise, selon des méthodes d'entreprise. L’accompagnement du Réseau Entreprendre Maroc  comprend également une aide financière délivrée à titre personnel (prêt d'honneur de  50.000 à 100.000 MAD) destinée à renforcer les fonds propres de l'entreprise et à créer un effet de levier sur les autres financements, notamment bancaires.","Morocco","Morocco; Tunisia","Oui","Prêt d'honneur","De  50.000 à 100.000 MAD","All sectors.","Growth","La localisation géographique du porteur de projet, un critère important pour être accompagné par un chef d'entreprise, seuls les projets implantés dans nos régions sont à accompagner. 2.  les \"projets à potentiel\" créateurs d'emplois. 3.       Une création à terme d'un nombre significatif d'emplois (> 5 emplois à 3 ans), un besoin de financement est inférieur à 100 000 dhs, et une volonté du porteur de projet d'apporter une différenciation par rapport au marché. 4.       Volonté forte du nouvel entrepreneur à donner une nouvelle impulsion à l'entreprise reprise. 5.       Entreprise de moins de 18 mois d'activité après démarrage (délai prolongé en cas de phase longue de Recherche & Développement, Ou vous avez repris une entreprise (de 4 à 40 salariés) depuis moins d'1 an. 6. Disposer du contrôle de la société et avoir un réel besoin d'accompagnement. 7.  Le management de l'entreprise créée ou reprise doit constituer l'activité principale du candidat, qui doit disposer du contrôle de l'entreprise et détenir la majorité dans le capital de la société et ayant un réel besoin d'accompagnement et en manifeste le souhait. Celui qui s'adresse au réseau uniquement pour obtenir un prêt d'honneur est hors cible. Et Le respect des valeurs fondatrices de Réseau Entreprendre.",null,null,"Crédit"]
["morseff.com","info","info@morseff.com","MORSEFF","71 boulevard d’Anfa, 8ème étage, N°37, Casablanca, Maroc ",null,"00212 520 36 49 74","www.morseff.com/fr","Bank","MorSEFF est la ligne de financement de l’énergie durable destinée aux entreprises privées marocaines, d’un montant global de 110 millions d'EUR. Développée par la Banque Européenne pour la Reconstruction et le Développement (BERD), en coopération avec la Banque Européenne d’Investissement (BEI), l’Agence Française de Développement (AFD), et la Kreditanstalt für Wiederaufbau (KfW).","Morocco","Morocco","MORSEFF permet aux entreprises marocaines d’accéder à :  Des prêts ou leasing pour l’acquisition d’équipements ou la réalisation de projets d'efficacité énergétique ou énergie renouvelable; Une subvention d’investissement de 10% du crédit;  Une assistance technique gratuite allant de l’évaluation, à la mise en œuvre, à la vérification du projet; Une distribution locale par des banques partenaires, BMCE Bank (et sa filiale Maghrebail) et Banque Populaire.","Crédit","467 000 EUROS ","Solaire; Energie; Revalorisation des déchets (biomasse,…); Efficacité énergétique (modernisation, extension de capacité…); All sectors.","Growth","Emprunteurs : entreprises privées (>= 50% du capital). Secteurs : industrie, bâtiments commerciaux et bureaux, transports, agriculture. Critères techniques : Investissements permettant de réaliser au moins 20 % d’économies d’énergie (30 % pour les bâtiments commerciaux) ou une réduction des émissions de CO2 d’au moins 20 %, ou Installation de technologies d’énergie renouvelable (ER) à petite échelle.",null,"MorSEFF est disponible auprès de deux banques partenaires BMCE Bank avec le produit CAP ENERGIE et Banque Populaire avec le produit ECO ENERGY INVEST. Les montants maximum éligibles sont de 50 000 000 DHS sur une taille maximum de projet de 150 000 000 DHS. En revanche, les taux et conditions d’octroi du crédit relèvent exclusivement des deux banques partenaires BMCE et BP.","Projets d’investissement à petite échelle: Prêt ou Leasing <=3 000 000 DHS. Equipements pré-Qualifiés choisis dans la base de données LEME* 10 % de subvention. Projets d’investissement de plus grande taille ou plus complexes: Prêt<=50 000 000 DHS. Leasing <= 10 000 000 DHS. Projets de modernisation, rénovation, extension de capacité, Ou énergie renouvelable:10% ou15% de subvention. Projets d’investissement dans les nouvelles constructions commerciales : Jusqu’à 30% du montant d’investissement (hors terrain) sous réserve de la décision de la banque. Prêts d’un montant maximum de 45 000 000 DH sur un coût d'investissement maximum de 150 000 000 DH (hors terrain). Prêts aux fournisseurs d’équipements:Prêts jusqu’à 10 000 000 DH utilisés pour financer l'extension de capacité de production et distribution des fournisseurs (ER).  Subvention d’investissement: 10% du montant du prêt MorSEFF. Les fournisseurs d’équipements ne sont pas éligibles: Assistance technique gratuite: Les fournisseurs d’équipements ne sont pas éligibles: Assistance technique gratuite: Assistance technique gratuite:Accompagnement du consultant de projet de la demande de financement à l’évaluation du projet, sa mise en œuvre et son suivi et vérification de la mise en œuvre du projet."]
["138pyramids.com","info","info@138pyramids.com","138Pyramids","4, Omaret Al Yamani Street, 2nd floor, flat #8, Zamalek, Egypt","info@138pyramids.com","(+) 20 (0)2 2736 9140","http://138pyramids.com/","Accelerator","138pyramids is a development finance initiative launched and managed by Delta Inspire in an effort to contribute an active role in supporting Egyptian startups and enhancing the development of the Small and Medium Enterprise “SME” sector. We aim to target high impact businesses with high employment opportunities at their early stages to either incubate them or accelerate their growth, unraveling their true potential.","Egypt","MENA","Open for Proposals from Green Entrepreneurs.","Equity investments","EGP 1 Million","Varied.","Early Stage; Growth","N/A","N/A","N/A","Equity"]
["tiec.gov.eg","info","inquiries@tiec.gov.eg","TEA by TIEC","Technology innovation & entrepreneurship center (TIEC), Smart-Village, Building (B5). Cairo-Alexandria Desert Road, Giza, Egypt ,P.O. Box: 12577","inquiries@tiec.gov.eg","Incubation: (202) - 35345734 Entrepreneurship: (202) - 35345752","http://www.tiec.gov.eg/en-US/Accelerator/Pages/About.aspx","Accelerator","TEA provides a set of well-formulated topics covering the aspects of turning ideas into strong business plans; going through legalities, financials, marketing, operations management, branding and writing business plans.\nTEA runs twice a year , each round for 12 weeks, in the following premises: TIEC Premises (Smart Village, Cairo). Alexandria University (Alexandria). - Mansoura University (Mansoura). - Assiut University (Assiut).","Egypt","Egypt","Open for Proposals from Green Entrepreneurs.","Equity investments","Diverse","Technology; Innovation.","Early Stage; Growth","N/A","N/A","N/A","Equity"]
["schools.aucegypt.edu","info","entrepreneur@aucegypt.edu","AUC Venture Lab","AUC Avenue, P.O. Box 74, New Cairo 11835, Egypt","entrepreneur@aucegypt.edu","00 20.2.2615.2401","http://schools.aucegypt.edu/business/aucvlab/Pages/default.aspx","Accelerator","AUC Venture Lab is Egypt’s first university-based incubator and accelerator at The American University in Cairo. The lab enables startups to capitalize on AUC’s intellectual capital, world-class facilities and research capacities. It connects innovative startups with AUC’s network that includes alumni, faculty, mentors and investors. Through this, it fosters a thriving ecosystem of innovation, education and responsible business.","Egypt","Egypt","Sustainable Business; Social entrepreneurs.","Equity investments; Venture Philantrophy.","Diverse","Technology; Innovation.","Early Stage; Growth","N/A","N/A","N/A","Grants; Equity"]
["crunchbase.com","info","info@juicelabs.me","JuiceLabs","9 Gamal Al Din Khlousi, Al Agouzah, Giza, Egypt","info@juicelabs.me","0020 2 37626577","https://www.crunchbase.com/organization/juicelabs","Accelerator","We designed a comprehensive 6 month technical and business program, tailor-made for each team. We hand-pick a couple of teams per cycle to ensure they get our full attention. We host them at our cool space in Cairo and work on getting them up and running, ready to compete on a global stage and connect them with the necessary opportunities & funds to become sustainable.","Egypt","Egypt","Open for Proposals from Green Entrepreneurs.","Equity investments","Diverse","Technology; Innovation.","Early Stage; Growth","N/A","N/A","N/A","Grants; Equity"]
["innoventures.me","info","info@innoventures.me","Startup Reactor by Innoventures","Ideaspace Helio, 124 Othman Ibn Afan Street, Unit #33; Heliopolis, Cairo 11361, EgyptIdeaspace Helio, 124 Othman Ibn Afan Street, Unit #33\n","info@innoventures.me","0020-2-2774-4374","http://innoventures.me/reactor","Accelerator","Startup Reactor is a 6-month program aimed at supporting and accelerating startups in Egypt with high growth potential. 30 startups will qualify for the 1-month Ignition stage and will receive mentorship and training. The top 3 startups will receive 15,000 Euros worth of cash prizes and investment opportunities from Innoventures and VC4Africa.","Egypt","Egypt","Open for Proposals from Green Entrepreneurs.","Equity Investments; Grants.","Diverse","Technology; Innovation.","Early Stage; Growth","N/A","N/A","N/A","Grants; Equity"]
["alexandriaangels.com","info","info@alexandriaangels.com","Alexandria Angels Network","15 Saleh Bacha ST, Zizenia, Alexandria, Egypt.","info@alexandriaangels.com","0020 102 461 5790","http://www.alexandriaangels.com","Business Angels","At Alexandria Angels, we help you invest in promising, early-stage companies with strong management teams, in and outside of Alexandria- Egypt. Our Angel Network brings together an extraordinary group of business and technology leaders for the benefit of local entrepreneurs and the wellbeing of the entrepreneurial ecosystem. Not only do we aim to create compelling business opportunities in large markets, we also help angels gain access to the right people and resources to grow their business, their way.","Egypt","Egypt","Open for Proposals from Green Entrepreneurs.","Equity investments","Customized","Diverse.","Early Stage","Viable business model.","N/A","N/A","Equity"]
["cairoangels.com","info","info@cairoangels.com","Cairo Angels","28 Falaki St., Bab El Louk,Cairo, Egypt. 11513.Office 204, Falaki Building","info@cairoangels.com",null,"http://www.cairoangels.com","Business Angels","The Cairo Angels is Egypt’s first formal angel investment network; investing in and supporting early-stage startups in Egypt and across the MENA region. Established in 2012, Cairo Angels convenes regular investment meetings to review pre-selected potential investees that meet the Cairo Angels investment criteria. Members may join virtually or physically in either Cairo or London. While angels make their own investment decisions, Cairo Angels facilitates due diligence for opportunities that receive interest from investors, negotiates terms and finalizes deal closing. Post-investment, the Cairo Angels can also provide portfolio management services for its investors. Angels invest their personal money in return for a minority equity stake in the business, and collectively make investments that range between 250K to 2M Egyptian Pounds per Company.The Cairo Angels is Egypt’s first formal angel investment network; investing in and supporting early-stage startups in Egypt and across the MENA region. ","Egypt","Egypt; MENA","Open for Proposals from Green Entrepreneurs.","Equity investments","LE 250000 to LE 1 million","Diverse.","Early Stage","N/A","N/A","250K EGP","Equity"]
["injaz-egypt.org","info","info@injaz-egypt.org","INJAZ ","52 Corniche El Maadi, Al Sharifain Building 9th Floor, Apartment 92 Cairo – Egypt","info@injaz-egypt.org","00 2025284205/6","http://injaz-egypt.org/start-up-egypt/","Incubator","An intensive Incubation Program that aims at getting your startup ready for growth and further investment. The series of challenges in the program are designed to ensure that by successful completion you will have built and registered your enterprise, received equity free seed funding and gained exposure to a great network of mentors and investors.","Egypt","MENA","Open for Proposals from Green Entrepreneurs.","Grants","120,000 EGP","Diverse.","Ideation; Early Stage","Tractability : How hard is it to launch your first version?\nObviousness : How appealing is your idea to your target market?\nDeepness : How much value can you ultimately deliver?\nWideness : How many people will you eventually serve?\nDiscoverability : How will people learn about your product?\nMonetizability : How hard will it be to extract the money?\nPersonally Compelling : How crucial do you believe your idea is to introduce in this world?Tractability : How hard is it to launch your first version?\nObviousness : How appealing is your idea to your target market?\nDeepness : How much value can you ultimately deliver?\nWideness : How many people will you eventually serve?\nDiscoverability : How will people learn about your product?\nMonetizability : How hard will it be to extract the money?\nPersonally Compelling : How crucial do you believe your idea is to introduce in this world?Tractability : How hard is it to launch your first version?\nObviousness : How appealing is your idea to your target market?\nDeepness : How much value can you ultimately deliver?\nWideness : How many people will you eventually serve?\nDiscoverability : How will people learn about your product?\nMonetizability : How hard will it be to extract the money?\nPersonally Compelling : How crucial do you believe your idea is to introduce in this world?Tractability : How hard is it to launch your first version?\nObviousness : How appealing is your idea to your target market?\nDeepness : How much value can you ultimately deliver?\nWideness : How many people will you eventually serve?\nDiscoverability : How will people learn about your product?\nMonetizability : How hard will it be to extract the money?\nPersonally Compelling : How crucial do you believe your idea is to introduce in this world?Tractability : How hard is it to launch your first version?\nObviousness : How appealing is your idea to your target market?\nDeepness : How much value can you ultimately deliver?\nWideness : How many people will you eventually serve?\nDiscoverability : How will people learn about your product?\nMonetizability : How hard will it be to extract the money?\nPersonally Compelling : How crucial do you believe your idea is to introduce in this world?Tractability : How hard is it to launch your first version?\nObviousness : How appealing is your idea to your target market?\nDeepness : How much value can you ultimately deliver?\nWideness : How many people will you eventually serve?\nDiscoverability : How will people learn about your product?\nMonetizability : How hard will it be to extract the money?\nPersonally Compelling : How crucial do you believe your idea is to introduce in this world?Tractability : How hard is it to launch your first version?\nObviousness : How appealing is your idea to your target market?\nDeepness : How much value can you ultimately deliver?\nWideness : How many people will you eventually serve?\nDiscoverability : How will people learn about your product?\nMonetizability : How hard will it be to extract the money?\nPersonally Compelling : How crucial do you believe your idea is to introduce in this world?.","N/A","N/A","Grants"]
["shekra.com","info","info@shekra.com","Shekra","4/2G, El-Shaikh El-Shaarawy Street, 4th Floor, Apt 7, Al Maadi, Cairo, Egypt","info@shekra.com","0020 2 27548510","http://shekra.com","Crowdfunding","Startups are pitched to Shekra's network of investors to be crowdfunded, giving access to smart capital, and also, insuring idea protection throughout the process. Startups which receive commitment for the full funding amount are then funded.","Egypt","MENA","Open for Proposals from Green Entrepreneurs.","Equity investments","Customized based on the company","Diverse.","Early Stage; Growth","N/A","N/A","$1000 USD","Equity Crowdfunding"]
["asrt.sci.eg","info","asrt@asrt.sci.eg","Intilac","101KASR AL-AINI ST, ACADEMY OF SCIENTIFIC RESEARCH & TECHNOLOGY, CAIRO, EGYPT POSTAL CODE 11516","asrt@asrt.sci.eg","(+202) 27921285 - 27921286","http://www.asrt.sci.eg/ar/index.php/grants/intilac-incubators","Incubator","Academy of Scientific Research and Technology (ASRT) works to bridge the gap between Academic Researchers, professionals and business community by transferring innovative technological ideas, that could be daring and early-stage for private investments, into products and startup companies through launching and adopting the National Program for the Technological Incubators “ INTILAC”.","Egypt","Egypt","Open for Proposals from Green Entrepreneurs.","Grants","150,000 EGP","Diverse.","Ideation","N/A","N/A","N/A","Grants"]
["nahdetelmahrousa.org","info",{"$f":"CONCATENATE(\"info@\",A68)","v":"info@nahdetelmahrousa.org"},"Nahdet El Mahrousa","4th floor, 17 Kasr Al Nile, Downtown, Cairo, Cairo Governorate 11111",null,"00 02 23908902","www.nahdetelmahrousa.org","Incubator","At Nahdet El Mahrousa, we believe in empowering the ideas of young Egyptian professionals to create new, innovative initiatives that lead to real, impactful social change. These ideals, embedded deep in our roots, have their own story to tell.","Egypt","Egypt","Our programs are designed to support social entrepreneurs and sustainable projects.","Grants","Diverse","Social Enterprises.","Ideation","Social Enterprise with a clear business model.","N/A","N/A","Grants"]
["unioncapitalpe.com","info","info@unioncapitalpe.com","Union Capital","3, Aboul Feda Str., 13th Floor, Zamalek, Cairo. EGYPT.  P.O. Box: 11211","info@unioncapitalpe.com","00 (202) 2735 0615 ","http://unioncapitalpe.com/","Venture Capital","Union Capital’s investment strategy is to provide risk capital in order to enable the growth, development, reconstruction, and expansion of Egyptian SMEs. We do this through the upgrading, modernization, and professionalization of their management systems, service delivery, and polished business models in order to enhance their organizational capacity, operational competence, and commercial success.","Egypt","Egypt","Open for Proposals from Green Entrepreneurs.","Equity investments","Diverse","Consumer: Cealthcare goods and services; Education; Communications; Food services; Retail, and Media.\nIndustrials: Food and beverage production and processing; Manufacture of consumer goods and feeder industries; Production of construction and building materials;\nBusiness & financial services: consumer finance; Prepayment; Insurance; Electronic payment processing; Leasing; Logistics; Business process outsourcing and software development.","Scale","Scale stage, focused on Egypt and corresponding sectors.","N/A","N/A","Equity Finance"]
["sawariventures.com","info",{"$f":"CONCATENATE(\"info@\",A70)","v":"info@sawariventures.com"},"Sawari Ventures","#1 Dr. Mohamed Sobhy Street, Ste. 9 Giza, Cairo",null,"00 (202) 3570 1802","http://www.sawariventures.com","Venture Capital","Sawari Ventures is an international venture capital firm that invests in people turning visionary ideas into market-leading companies in the Middle East and North Africa (MENA). We believe in the transformative power of entrepreneurial thinking. We know that innovation can spark curiosity, speak to personal passions and inspire new markets. We understand the capacity of technology to facilitate, enhance and even create new ways of doing business.\nOur goal is simple: we want to identify, serve, and provide capital for extraordinary entrepreneurs who are determined to change the MENA region.","Egypt","MENA","Open for Proposals from Green Entrepreneurs.","Equity investments","Diverse","Technology; Innovation.","Growth; Scale","N/A","N/A","$200K","Equity Finance"]
["wamdacapital.com","info","info@wamdacapital.com","Wamda Capital",null,"info@wamdacapital.com",null,"http://wamdacapital.com/","Venture Capital","At Wamda Capital, we invest in transformational businesses and create meaningful partnerships with entrepreneurs. Our experience in launching and growing MENA businesses, together with a community of experts and mentors at the Wamda Platform, mean our entrepreneur partners are uniquely placed to realize their vision.","Egypt","MENA","Open for Proposals from Green Entrepreneurs.","Equity investments","Diverse","Technology; Innovation.","Growth; Scale","Team, market assessment and scalability.","N/A","N/A","Equity Finance"]
["mevp.com","info","info@mevp.com","Middle East Venture Partners",null,"info@mevp.com","(+) 971 4 558 4534/5","http://www.mevp.com/","Venture Capital","MEVP is a Middle East-focused venture capital firm that invests in the early and growth stages of innovative companies run by talented entrepreneurs primarily, but not exclusively, in the Middle East Region with a focus on the GCC and Levant markets.","Egypt","Egypt; Lebanon; Jordan","Open for Proposals from Green Entrepreneurs.","Equity investments","$200K - $3 Million","Retail; F&B;Consumer Services; Creative Industries; ICT.","Growth; Scale","N/A","N/A","$200K","Equity Finance"]
["algebraventures.com","info","info@algebraventures.com","Algebra Ventures","12 Saleh Ayoub St. 5th floor, Zamalek, Cairo, Egypt.","info@algebraventures.com",null,"http://algebraventures.com/","Venture Capital","Our firm was founded by some of the most experienced VC investors in Egypt. We have seen technology transform our societies and impact how we communicate, decide and transact. We foresee technology having even more meaningful impact in the coming years as a new generation of entrepreneurs build the market-leading companies of tomorrow.","Egypt","Egypt","Open for Proposals from Green Entrepreneurs.","Equity investments","$500K to $4m","Core Technology; Indutry Marketplaces; E-commerce; FinTech; Business Software and Platforms; Internet and Mobile.","Growth; Scale","Market focus, growth.","Stage","$500K","Equity Finance"]
["endurecap.com","info","press@endurecap.com","Endure Capital","New Financial Center (140), Zone 1. - Banking Road, From 90th St. 1st Floor, Red-Con Building.","press@endurecap.com",null,"http://www.endurecap.com/","Venture Capital","Endure Capital is an early stage investment fund headed by entrepreneurs. We're looking for startup teams with great ideas and, more importantly, relentless execution to build companies that achieve hyper-growth.","Egypt","MENA","Open for Proposals from Green Entrepreneurs.","Equity investments","Diverse","All sectors.","Scale","Persistence and resourcefulness.","N/A","Diverse","Equity Finance"]
["ayadyegypt.com","info","info@ayadyegypt.com","Ayady Egypt",null,"info@ayadyegypt.com",null,"http://ayadyegypt.com","Venture Capital","AYADY for Investment and Development was established in March 2015 as an economic private investment entity aspiring to stimulate investments and promote development in Egypt. The main purpose for establishing AYADY is to achieve economic growth throughout the country in order to improve living standards for Egyptians. AYADY aims to accomplish this by tapping into attractive projects that contribute to the creation of economically beneficial ventures all over Egypt and ensure high returns on investment.","Egypt","Egypt","Open for Proposals from Green Entrepreneurs.","Equity investments","Diverse","Industrial; Agriculture; Tourism; Services.","Growth; Scale","Serving Egypt 2030 Vision.","N/A","Diverse","Equity Finance"]
["alfanar.org.uk","info",{"$f":"CONCATENATE(\"info@\",A76)","v":"info@alfanar.org.uk"},"Alfanar","Alfanar Cairo. 50 Nadi El-Sayd St. (3rd floor), 12311 Dokki, Giza, Cairo, Egypt.Alfanar Cairo. 50 Nadi El-Sayd St.",null,"002 (02) 3335 1299","http://www.alfanar.org.uk/","Venture Philanthropy","Alfanar is the first venture philanthropy organisation in the Arab world that invests and provides engaged management support, coaching and training to social enterprises. ","Egypt","Egypt; Lebanon","Entreprises with strong social impact in the growth phase.","Grants; Repayable loans.","45,000 USD","Women empowerment and youth employment across all sectors. Children’s education. Green initiatives with social impacts.","Growth","The organisation should be equally focused on social impact (improving lives in disadvantaged communities) and financial sustainability.","N/A","Perform a due diligence to assess investment viability.","Grants; Repayable loans"]
["mnf.ma","info","info@mnf.ma","Maroc Numeric Fund","Technopark, Route de Nouacer, 20150 Casablanca, Morocco",null,"00212 5 22 50 30 33","mnf.ma","Venture Capital",{"$cut":{"chars":19572,"head":"Maroc Numeric Fund was created in 2010 as part of the Maroc Numeric 2013 national plan, a strategy developed by the Ministry of Industry, Trade and New Technologies. It was the first Venture Capital fund dedicated to Moroccan technology startups with a total size of 100 Million Dirhams. The fund was equally hold by the Moroccan state (through MITC, the managing company of Technoparks), BMCE Bank, Attijariwafa Bank, CDG and BCP.\nIn 2018, a second fund “Maroc Numeric Fund II” was created as part of “Innov Invest” program. It’s shareholders are Caisse Centrale de Garantie (on behalf of the Moroccan Government), Attijariwafa Bank, BMCE Bank, Banque Centrale Populaire and MITC, the management company of Technoparks.\nMaroc Numeric Fund is looking to invest in talented entrepreneurs with a national and international vision and ambition, able to transform their ambitious ideas into profitable startups, leaders in their field and job creators. Vocation et Objectifs: Promote entrepreneurship\nMaroc Numeric Fund (MNF) aims to be a catalyst for technological creation and innovation in Morocco. Its role as a venture capital fund is to invest in startups that offer a high risk/return ratio and to promote a culture and environment conducive to the emergence of innovative startups.\n\nEnable the emergence of new startups\n\nStartups play an important role both socially (job creation) and economically (contribution to growth, creation of economic value). Maroc Numeric Fund aims to contribute to the development of the sector by financing and supporting projects that offer innovative solutions in promising markets.\n\nFilling the financial gap\n\nFunding startups enables entrepreneurs to finalize the first phase of their development. The financing gap in Morocco is particularly marked for equity needs of less than MAD 10 million. Indeed, such amounts are often too large for business angels and too small for existing private equity funds.\n\nBe a long term investor partner\n\nMaroc Numeric Fund’s management team does not only invest equity : it invests its time, its knowledge and its network to serve the needs of entrepreneurs. Maroc Numeric Fund is systematically represented on the board of directors of the startup to participate in the development of the strategy, provide advice and assistance to entrepreneurs.\nWe provide, as much as we can, concrete assistance in certain operational areas. MNF provides the startup management teams with the benefit of its network of operational experts in the accounting, legal and regulatory fields and mobilizes a vast network of experts and experienced players in information technologies. Finally, Maroc Numeric Fund also supports the management teams in their development projects and in particular in accessing the following investment rounds.Maroc Numeric Fund was created in 2010 as part of the Maroc Numeric 2013 national plan, a strategy developed by the Ministry of Industry, Trade and New Technologies. It was the first Venture Capital fund dedicated to Moroccan technology startups with a total size of 100 Million Dirhams. The fund was equally hold by the Moroccan state (through MITC, the managing company of Technoparks), BMCE Bank, Attijariwafa Bank, CDG and BCP.\nIn 2018, a second fund “Maroc Numeric Fund II” was created as part of “Innov Invest” program. It’s shareholders are Caisse Centrale de Garantie (on behalf of the Moroccan Government), Attijariwafa Bank, BMCE Bank, Banque Centrale Populaire and MITC, the management company of Technoparks.\nMaroc Numeric Fund is looking to invest in talented entrepreneurs with a national and international vision and ambition, able to transform their ambitious ideas into profitable startups, leaders in their field and job creators. Vocation et Objectifs: Promote entrepreneurship\nMaroc Numeric Fund (MNF) aims to be a catalyst for technological creation and innovation in Morocco. Its role as a venture capital fund is to invest in startups that offer a high risk/return ratio and to promote a culture and environment conducive to the emergence of innovative startups.\n\nEnable the em"}},"Morocco","Morocco","Green technology companies are part of their portfolio.","Equity investments; Grants.","The investment ticket for this phase is between 1 and 4 million MAD.","We invest in innovative startups operating in the information and communication technology sector with high growth potential. The project must present a form of innovation in relation to the national industry, but this may also lie in the technology, the business model, the marketing method or the very nature of the use of the product or service. Maroc Numeric Fund reserves up to a maximum of 20% of its capital for other innovative sectors (e.g. biotechnology, green technologies, etc.). We exclude from studying projects mainly dedicated to e-commerce, distributors, importers or training and technological consulting firms.","Early Stage; Growth",null,"N/A",null,"Equity; Capacity building"]
["centretpes.ma ","info","meriem.hachami@ctpes.ma","Centre des TPE Solidaires","Boulevard Oued Zem, Lotissement Al Wahda 2, Ben M’sick, Casablanca ","meriem.hachami@ctpes.ma","(+) 212 5 22 55 70 03 ","centretpes.ma ","Incubator","Le Centre des TPE Solidaires - Morocco (Grand Casablanca) se positionne en tant qu’organe national dédié au développement de la TPE, Le Centre a pour mission de promouvoir l’esprit d’entreprendre et d’apporter un appui aux jeunes en situation de précarité, disposant d’aptitudes et de motivation entrepreneuriales et porteurs de projets économiquement viables. L’objectif majeur du CTPES est le développement inclusif à travers l’entrepreneuriat et l’autonomisation des jeunes et femmes en situation de précarité, à travers la création de TPE et le développement de projets générateurs de revenus.","Morocco","Morocco","Financement de deux projets èco-innovant sur 70. ","Dons; Grants.","50 000.00","Tous les secteurs d'activité et projet économiquement viable. ","Early Stage","Profil entrepreneurial; Adéquation projet / marché potentiellement porteur; Situation sociale précaire .","N/A","La viabilité économique du projet.","Grants; Capacity Building; Dons en logistique: les modalités de financement sont: - Un atelier de travail - Un appui logistique et matériel mis à la disposition du bénéficiaire gratuitement, avec possibilité de cessation après la période d'incubation - Formation et accompagnement gratuits pendant 18 mois."]
["ceed-global.org","info","info@ceed-morocco.org","CEED","49 Avenue 2 Mars, 3ème étage Bureau No 14 Casablanca","info@ceed-morocco.org","00212 5222-20645","https://ceed-global.org/team/","Accelerator","CEED develops and connects entrepreneurs who want to grow as leaders, build their companies and give back to their community. Building a community of entrepreneurs is paramount in our approach. Our vision is to be the most valuable resource for entrepreneurs in their growth by developing sustainable local communities, around the world. CEED Morocco est membre du réseau international de CEED, une organisation non gouvernementale américaine qui accompagne les entrepreneurs pour le développement de leurs entreprises dans les marchés émergents. CEED Morocco fait partie d’un large réseau international d’exploitation et d’entreprenariat dans le monde. Sa mission est de fournir aux entrepreneurs le savoir-faire et les réseaux dont ils ont besoin pour accélérer la croissance de leurs entreprises et de promouvoir une culture entrepreneuriale dans la société en général.","Morocco; Tunisia","Global","Special attention to sustainable and social business.","Grants","N/A","Tous les secteurs","Early Stage; Growth",null,"N/A",null,"Providing access to finance: CEED is building a pipeline of ‘investment ready’ companies by preparing entrepreneurs for outside capital, improving their financial management skills, and guiding them to appropriate providers. CEED works with financial advisors, the banking/finance communities and donor agencies to build awareness of financing opportunities and accelerate the speed with which growth and working capital can be extended. Those in the CEED network who qualify have also received capital directly from SEAF in markets where both entities exist."]
["mcise.org","info",{"$f":"CONCATENATE(\"info@\",A80)","v":"info@mcise.org"},"Centre Marocain pour l’Innovation et l’Entrepreneuriat Social","5 résidence Aziza, derb guessous, Bab El had, Rabat,",null,null,"www.mcise.org/","Incubator; Accelerator","Le Centre Marocain pour l’Innovation et l’Entrepreneuriat Social lance son programme  intensif d’accompagnement de start-ups sociales au Maroc. Grâce à son réseau national ainsi qu’international, Dare a pour but de développer l’écosystème relatif à l'entrepreneuriat social dans le royaume. Alors, ne manquez pas cette opportunité et postulez maintenant ! Ce programme, soutenue par la Fondation DROSOS, aspire à soutenir les entrepreneurs sociaux, ces changemakers qui se dévouent à trouver des solutions innovantes répondant à des défis sociaux pressants. Dare Incubation ambitionne de dynamiser l’ensemble de l’écosystème de l'entrepreneuriat social au Maroc, ainsi que de mettre sur le marché un flux significatif de startups capables d’attirer des investissements nationaux et étrangers.preneuriat social au Maroc, ainsi que de mettre sur le marché un flux significatif de startups capables d’attirer des investissements nationaux et étrangers.","Morocco","Morocco","Nous avons incubé 60 projets innovants à fort impact dont 12 ont bénéficié de notre financement à hauteur de 28500 dhs.","Fonds d'amorçage; Grants.","28.500 dhs ","Tous les secteurs.","Ideation; Early Stage; Growth","Théorie du changement validée; Anlayse du marché validée; Modèle économique validé; Création juridique de la SARL; Produit fini amélioré; validation de 18 heures de mentoring + 90 heures de participation aux activités de l'incubateur.","La création juridique de l'entreprise à financer.",null,"Fonds d'amorçage et intégration dans la plateforme de prévente Wuluj."]
["outlierz.co","info","info@outlierz.co","Outlierz",null,"info@outlierz.co",null,"http://www.outlierz.co","Venture Capital","Outlierz is a Moroccan based seed investment firm by entrepreneurs for entrepreneurs, dedicated to provide smart capital to startups in Africa. We see tremendous opportunities at the intersection of Technology, Entrepreneurship and African economies. We believe there is talent but not enough money and appropriate resources to grow scalable startups from emerging ecosystems. We want to change that and enable brilliant entrepreneurs to grow successful business from Africa to the World. Thus, creating a curated deal-flow for early-stage investors and ultimately the success stories our continent needs. We are backed by some of the world most brilliant successful entrepreneurs and angel investors.","Morocco","Morocco; Tunisia","Yes.","Equity investments; Grants.","N/A","Tous les secteurs.","Ideation; Early Stage; Growth","We back AWESOME founders first. Ideas can change. We take startups that already have a product on the market. We love to see some traction, revenue and metrics that show we can help you grow. We look for innovative models with low capital intensity in any industry using technology to build a scalable model. We love Tech but we are not exclusive. We invest in startups that think global or regional from day ONE and can scale fast. We consider applications from founders based in Africa or startups based anywhere in the world focusing on the African market.","N/A",null,"SEED & SERIES A ROUNDS: We also invest along-side other investors in Series A rounds of $2-3M in growing companies with good traction and revenue. PRE-SEED & SEED STAGE: We invest $50-200K in pre-seed and seed stage startups with a product on the market, a solid team and some traction. MORE THAN JUST MONEY:We provide hands-on advice, resources and access to our global network of world-class mentors and investors."]
["ocpen.org","info","contact@ocpentrepreneurship.org","OCP Entrepreneurship Network","N° 40, Avenue Al Fadila, C.Y.M, Rabat  ","contact@ocpentrepreneurship.org","00212 661 91 69 74","www.ocpen.org/","Incubator; Accelerator","Grace à son réseau de partenaires, OCP Entrepreneurship Network vise à offrir un programme complet de soutien à l’entrepreneuriat à travers les domaines d’intervention suivants : La promotion de l’entrepreneuriat; L’accompagnement technique et financier à la création de nouvelles entreprises, coopératives et activités génératrices de revenus. Le soutien à la croissance des entreprises existantes. L’encouragement à l’innovation, l’entrepreneuriat féminin et l’entrepreneuriat social. Notre approche est axée sur les débouchés et la pérennité de l’entreprise.","Morocco","Morocco","Oui, avec l'encouragement à l’innovation, l’entrepreneuriat féminin et l’entrepreneuriat social.","Grants","N/A","Tous les secteurs.","Ideation; Early Stage",null,null,null,"Grants; Capacity Building."]
["alamana.org.ma","info",{"$f":"CONCATENATE(\"info@\",A83)","v":"info@alamana.org.ma"},"Al Amana Microfinance","40, Av. AL FADILA C.Y.M 10130 Rabat, Maroc",null,"00 212 (0)5 37 28 95 00","www.alamana.org.ma/fr","Microfinance Institution","Al Amana Microfinance est une association à but non lucratif créée le 13 février 1997 et agréée en tant qu’Association de microcrédit par le Ministère des Finances le 31 mars 2000. Leader du secteur de la microfinance au Maroc, Al Amana Microfinance dispose, à fin  2016, d’un réseau de plus de 606 points de service dont 237 dans les zones urbaines et périurbaines, 283 dans les zones rurales et 86 véhicules mobiles desservant les zones les plus enclavées. ","Morocco","Morocco","N/A","Prêts","1.000 MAD  – 50.000 MAD","Tous les secteurs.","Early Stage; Growth","Activité : Justifier d’au moins 6 mois d’ancienneté dans l’exercice de la même activité objet de la demande du prêt. Age : Minimum 18 ans à la date où il dépose sa demande de prêt et 70 ans à la date prévue de la dernière échéance du prêt. La capacité de remboursement et la crédibilité du client. Liste d’exclusion : Le projet ne devrait pas avoir de dégâts écologiques et éléments de la RSE.","Viabilité économique du projet.","1.000 MAD","Micro-crédit"]
["alkarama-mc.org.ma","info","info@alkarama-mc.org.ma","Fondation AL KARAMA","13. Avenue Moulay Hassan.1er étage Quartier Hassan - Rabat Maroc",null,"(+) 212537730181","alkarama-mc.org.ma","Microfinance Institution","La Fondation AL KARAMA\" est autorisée, dans l’exercice de ses missions et activités, par le Ministère de l’Economie et des Finances par Arrêté du 31 mars 2000.","Morocco","Morocco","N/A","Micro-crédit","N/A","Tous les secteurs.","Early Stage; Growth",null,null,null,"Al Karama cible les crédits solidaires, les crédits individuels, Les crédits individuels logement, les crédits individuels Izdihar, les crédits individuels Ennaqel"]
["creditagricole.ma","info","info@creditagricole.ma","Fondation ARDI","Angle Av Hassan II et rue Iran, Temara centre 12000 - Maroc",null,"06 61 06 92 25  -  06 61 09 21 91","https://www.creditagricole.ma/fr/fondation-ardi","Microfinance Institution","La Fondation ARDI pour le micro-crédit Filiale du Groupe Crédit Agricole du Maroc est une association à but non lucratif crée en 2001 et offrant des produits financiers et non financiers ainsi que des services de proximités aux populations défavorisées et en marge des systèmes de financement classique.","Morocco","Morocco","Partenariat entre Fondation, PF et UE - projet FreemE (financement et encadrement des micro-entrepreneurs investissant dans le domaine des énergies renouvelables et efficacité énergétique).","Micro-crédit","3500 DH","Énergie; Déchets; Recyclage; Efficacité énergétique.","Ideation; Early Stage; Growth","Age min/max : 18 ans/70 ans     Avoir un projet viable et générateur de revenu  respectant les normes environnementales et sociétales.","Niveau de formation de la population ciblé.","1000 DH","Crédit Solidaire; Crédit Individuel; Crédit Chabab (destinée à une population de moins de 30 ans)."]
["albaraka.com","info","info@albaraka.com","Al Baraka Banking Group B.S.C.","Immeuble Saraya angle boulevard Riad et avenue Al Arz – Hay Riad – Rabat 10100 Maroc",null,null,"www.albaraka.com","Microfinance Institution","Al Baraka Banking Group B.S.C. (\"ABG\") is licensed as an Islamic wholesale bank by the Central Bank of Bahrain and is listed on Bahrain Bourse and NasdaqDubai. It is a leading international Islamic banking group providing its unique services in countries with a population totaling around one billion. The Group has a wide geographical presence in the form of subsidiary banking units and representative offices in 17 countries, which in turn provide their services through over 700 branches. Al Baraka Banking Group has operations in Jordan, Egypt, Tunis, Bahrain, Sudan, Turkey, South Africa, Algeria, Pakistan, Lebanon, Saudi Arabia, Syria, Morocco and Germany, in addition two branches in Iraq and two representative offices in Indonesia and Libya.","Morocco; Jordan; Egypt; Tunis; Algeria; Lebanon","MENA","Albaraka cible les microentrepreneurs et les TPE exclus des systèmes de financement classiques dont les activités qui respectent l'environnement et sert plusieurs projets innovants.","Loans","10 000 DH","All sectors.","Early Stage; Growth","La stabilité du projet du microentrepreneur et sa moralité sont bien entendu les principales conditions pour accorder le prêt. en revanche, une analyse financière approfondie du projet dans sa globalité permet de vérifier la capacité de remboursement du microentrepreneur qui demeure un élément essentiel pour financer le projet.  ","Le plafonnement réglementaire des prêts à 50 000 DH peut être considéré comme un obstacle de développement de certains clients notamment les TPE (très petites entreprises) ayant des besoins de financement plus importants.",null,"Pret"]
["tripolientrepreneurs.org","info","info@tripolientrepreneurs.org","Tripoli Entrepreneurs Club","Mina, Mina roundabout, Masri & Alameddine Building - Next to Linea Verde, ground floor - Tripoli, Lebanon",null,"00961 06 212 049","www.tripolientrepreneurs.org","Incubator; Accelerator","The club aims to create, foster, and nurture entrepreneurial culture in Lebanon, with a particular interest in Tripoli. It does so by educating students and young inventors through awareness campaigns, and training on idea generation, entrepreneurship, social entrepreneurship, business planning, fundraising and pitching with focused workshops, competitions and boot camps.","Lebanon","Lebanon","Carpolo; Recyclo;  E-Light; Clean2O; Enercore; Chemrec; Velo Route; Green Track;  Akkar trail Ventures.","Accelerator programmes; Incubator programmes.","N/A","Creativity; Technology; Health; Green and sustainable solutions.","Ideation; Early Stage; Growth","Readiness of the protoype and the Team's competency.","Have an innovative idea; Be a resident in the North of Lebanon; Have a positive impact on the community","20000$","Equity investment; Loans; Crowdfunding; Accelerator Programme; Grants; In-kind grants."]
["mevp.com","info","info@mevp.com","Middle East Venture Partners","Emirates Financial Towers North Tower, Suite 703 DIFC Dubai, UAE",null,"00971 4 5584 534/5","http://www.mevp.com/","Venture Capital","MEVP invests in innovative tech companies run by talented entrepreneurs primarily, but not exclusively, in the Middle East region with a focus on the GCC and Levant countries","Lebanon","MENA","N/A","Equity investments","$2M - $5M","ICT Sector agnostic.","Growth","MENA-based technology companies.","If the company does not fit our mandate to invest in MENA-based technology companies","$2M","Equity"]
["makhzoumifoundation.org","info","info@makhzoumifoundation.org","Makhzoumi Foundation","Beirut, Mazraa, Zreik Street, Makhzoumi Bldg.",null,"(01) 660890/1/2; ext:214","http://makhzoumifoundation.org","Microfinance Institution","Makhzoumi Foundation mobilizes resources, builds partnerships and develops the capacities of our community in Lebanon while promoting targeted education, affordable healthcare, workable startups, sustainable development and secured livelihoods.","Lebanon","Lebanon","Open for Proposals from Green Entrepreneurs.","Loans","300$-15k$/ LBP: 1,000,000 to 3,000,000","Beauty and Health; small businesses.","Early Stage; Growth","Microcredit was initiated to provide financial services to those who are unable to get these services from the banks.","Not registered company","The entrepreneur has to invest at least 20%of the amount required.","Loans; Grants."]
["kafalatisme.com.lb","info","info@kafalatisme.com.lb","ISME by Kafalat","Hamra Street, Picadilly Center, 5th Floor Beirut Hamra ",null,null,"http://www.kafalatisme.com.lb/","Public opportunity","The iSME Programme is a US$ 30 million initiative funded by the Government of Lebanon through a loan from the World Bank.\nThe programme aims to encourage the equity investment market to increase early stage investment finance for financially viable, new, and existing innovative firms.","Lebanon","Lebanon","Carpolo and Riego benefited from iSME Grants programme.","Equity investments; Grants.","$500k (co-investments); Grants 15K","Sector agnostic.","Early Stage; Growth","Innovative Lebanese start-ups.","Non-tech project","Start-ups and SMEs having a potential to generate significant value added for the business and the Lebanese economy.","Co- Equity"]
["kafalat.com.lb","info","info@kafalat.com.lb","Kafalat SAL","Hamra street, Picadilly Center P.O. Box 11-641 - Beirut, Lebanon",null,null,"www.kafalat.com.lb","Bank","Kafalat is a Lebanese financial company with a public concern that assists small and medium sized enterprises (SME s) to access commercial bank funding.","Lebanon","Lebanon","Open for Proposals from Green Entrepreneurs; Financing RE and EE projects.","Loan guarantees","Ranges between $ 20K and $ 800K","Industry; Agriculture; Tourism; Traditional Crafts; High Technology.","Early Stage; Growth","Business plan, feasability studies that show the viability of the proposed business activity.","Early stage cash flow is not enough to cover loan monthly payments.","No minimum, Start-ups and SMEs having a potential to generate significant value added for the business and the Lebanese economy.","Loan guarantees"]
["speedaccelerator.com","info","info@speedaccelerator.com","Speed"," Berytech Digital Park BDD 1294 Bechara El Khoury Street Beirut Lebanon","info@speedaccelerator.com","00961 1 649555 ext 6020-6021","http://speedaccelerator.com/","Accelerator","Speed is a tech accelerator that empowers software startups to succeed and scale globally through a 3-month mentorship-driven program, $30,000 in funding, and a lifelong network of mentors and partners.","Lebanon","MENA","Yes and interested in future opportunities.","Equity investments","$30k in Kind , $30k cash","Software; digital; web/mobile industries.","Early Stage; Growth","Speed is mainly interested in tech innovation.","Non-tech project","The quality of the team and the strength of their economic model.","Equity"]
["fondation-diane.org","info","info@fondation-diane.org","Fondation Diane - Viridis Investment Fund","RayMondo, Nawar Building, Roumieh - Industrial Zone, Metn, Lebanon",null,null,"https://www.fondation-diane.org/","Venture Capital; Business Angels","Fondation Diane is dedicated to create the first green investment fund in Lebanon. Its vision is to sustain Lebanon’s environment by greening its economy. To achieve these ambitious goals, FD’s fund backs-up Lebanese green start-ups and SMEs through equity and sometimes debt investing and constant business support.","Lebanon","Lebanon","Equity investment in Lebanese Start-ups :  L'atelier de miel, Carpolo, Compost Baladi, Cortas, Cubex, EcoServ, FabricAid, Mint Basil Market, MeGreen, Taqa.","Equity investments; Loans; Convertible loans.","200k$-500k$","Waste management; Eco-tourism; Transportation and Mobility; Energy; Organic production.","Growth","Quantifiable environment impact, postive business model, compliance with UN's 17 Sustainable Development Goals.","Lack of sustainability.","N/A","Plain Equity;  Royalty Based Financing;  Hybrid Instrument; Incubation."]
["flat6labsbeirut.com","info","info@flat6labsbeirut.com","Flat6Labs","Beirut Digital District, Building 740, Ground Floor, Tyane Street, Beirut, Lebanon",null,null,"www.flat6labsbeirut.com","Accelerator","Flat6Labs Beirut is a startup seed program and early stage fund. The Seed Program provides cash investment, mentorship, office space and legal support for entrepreneurs to build a successful startup. The Early Stage Fund invests in startups with demonstrated market traction, a solid team and a growth plan.","Lebanon","Lebanon; Egypt; Tunisia","N/A","Cash investment; Mentorship; Coaching; Business and legal support; Marketing support.","Up to $100k in exchange for 10%-15% equity for seed stage entrepreneurs ; $100k-$300k for follow-on funding; $300k-$500k for early stage startups","Knowledge economy; Renewable Energy & Agricultural Solutions; FinTech; EdTech and HealthTech; Digital Content & Gaming; Hardware; Electronics & Manufacturing Solutions; Media & Entertainment; ICT; B2B; Infrastructure Services.","Early Stage; Growth","Seed stage: Team and prototype; Early stage: Established startups with growth plansSeed stage: Team and prototype; Early stage: Established startups with growth plans.","Technological innovation , Individual founders.","Seed Program: 10%-15%; Early Stage fund: varies.","Equity Funding: Seed Stage and Early Stage."]
["esfd.cdr.gov.lb","info","info@esfd.cdr.gov.lb","ESFD","Downtown, Weygand Street, Beirut Souks, Block M, 3rd Floor",null,null,"http://www.esfd.cdr.gov.lb/","Bank","The ESFD is a governmental body dedicated to alleviate poverty in Lebanon through the creation of employment opportunities and the improvement of living conditions in disadvantaged communities.","Lebanon","Lebanon","Open for Proposals from Green Entrepreneurs.","Loans to SMEs nationwide with a focus on remote areas.","USD 50,000","All sectors.","Early Stage; Growth; Scale","ESFD does not directly lend.  Lends through selected banks chosen on competitive basis.  ESFD shares banks' credit risk.","N/A","N/A","Loans"]
["cedarmundi.com","info","info@cedarmundi.com","Cedar Mundi Ventures","Sodeco Square Center, Block B, 5th Floor",null,"00961 1 422590","cedarmundi.com/","Venture Capital","Lebanese venture capital firm (part of Kuwait Holding conglomerate of the Al Bahar family) investing in international technology startups, having substantial economic presence in Lebanon and growth opportunities in the Middle East.","Lebanon","Lebanon; Egypt; Jordan","Open for proposals from Green Entrepreneurs\nInvestigated opportunities, but no investment yet\nIn diverse sectors : AgriTech, circular economy, FoodTech, healthcare, logistics, …Open for proposals from Green Entrepreneurs\nInvestigated opportunities, but no investment yet\nIn diverse sectors : AgriTech, circular economy, FoodTech, healthcare, logistics, …Open for proposals from Green Entrepreneurs\nInvestigated opportunities, but no investment yet\nIn diverse sectors : AgriTech, circular economy, FoodTech, healthcare, logistics, …Open for proposals from Green Entrepreneurs\nInvestigated opportunities, but no investment yet\nIn diverse sectors : AgriTech, circular economy, FoodTech, healthcare, logistics, …Open for proposals from Green Entrepreneurs\nInvestigated opportunities, but no investment yet\nIn diverse sectors : AgriTech, circular economy, FoodTech, healthcare, logistics, …Open for proposals from Green Entrepreneurs\nInvestigated opportunities, but no investment yet\nIn diverse sectors : AgriTech, circular economy, FoodTech, healthcare, logistics.","Equity investments","1- 3 Million dollars","Technology; digital.","Early Stage; Growth","Have substantial economic presence in Lebanon and growth opportunities in the Middle East.","When project lacks maturity or is not tech-powered;  When we do not believe in growth plans & competitive advantages being built; When founders do not complement each other enough; When we fail to share company valuation expectations.","N/A","Equity"]
["berytechfund.org","info","info@berytechfund.org","Berytech Fund II","Berytech Technology and Health, Mathaf, Facing the French embassy",null,null,"http://www.berytechfund.org/","Venture Capital","Berytech Fund II is a $51.5M Beirut-based Venture Capital Fund with the objective to invest in small and medium sized Lebanese enterprises with high growth potential, high human added value and that fall in the scope of the knowledge economy.","Lebanon","Lebanon","Open for Proposals from Green Entrepreneurs.","Equity investments","$1M - $3M","Information & communication technologies; Digital content; Fashion&Design; Industrial Design; Renewable Energy.","Early Stage; Growth","Innovative idea, potential for seamless scalability, outstanding team.","Incomplete teams.","$1M","Equity; Capacity building."]
["agrytech.org","info","Info@agrytech.org","Agrytech","Berytech Technology Pole, USJ ESIB Campus, Mar Roukoz","Info@agrytech.org","00 961 4 533 040","https://agrytech.org/","Accelerator","Co-funded by the Embassy of the Kingdom of the Netherlands and the Berytech Foundation, Agrytech is an accelerator program that aims to advance innovative ideas in the Agri-Food sector into successful businesses with a global impact.","Lebanon","Lebanon","Agrytech has supported 3 batches that sums to more than 70 startups since 2017. Two of these successful  startups are Startchy and Smart gourmet.  ","The Agrytech program offers cash-based grants and cash-based 1:1 matching grants to startups.  The grants are traunched between validation, acceleration, and the incubation and growth phase over the period of one year.  The program offers the resources, knowledge, support, and funding necessary to scale the startups' idea and grow it into an international business through\nStartup Funding, Prototyping Facilities, Business Coaching, Workshops, Customer Access, Industry Connections,  and Follow-on Mentoring.The Agrytech program offers cash-based grants and cash-based 1:1 matching grants to startups.  The grants are traunched between validation, acceleration, and the incubation and growth phase over the period of one year.  The program offers the resources, knowledge, support, and funding necessary to scale the startups' idea and grow it into an international business through\nStartup Funding, Prototyping Facilities, Business Coaching, Workshops, Customer Access, Industry Connections,  and Follow-on Mentoring.","Up to $37000 in grants and matching capital","Agriculture; Ag-tech; Food; Food-tech; Technology.","Ideation; Early Stage; Growth","The startups apply through a competitive application process involving a written application form and in-person interviews with a panel of  industry/investment/startup experts.","N/A","N/A","Grants"]
["programs.berytech.org","info","cleanergy@berytech.org","Cleanergy","Berytech Technology Pole, USJ ESIB Campus, Mar Roukoz","cleanergy@berytech.org","00 961 4 533 040","https://programs.berytech.org/cleanergy/","Accelerator","Co-funded by the Embassy of the Kingdom of the Netherlands and the Berytech Foundation under the ACT Smart Innovation Hub, Cleanergy  accelerator program is catalyzing cleantech innovations through a yearly three-phase program that allows cleantech entrepreneurs grow their startup from an idea into a scalable business.","Lebanon","Lebanon","Berytech has managed since 2017 the Agrytech Accelerator program that focuses on supporting Agri-food startups, and has created Cleanergy to focus on different industries  such as Water and Wastewater Management, Solid Waste Management, Transportation, and Energy.","The Cleanergy acceleration program offers cash-based grants and cash-based 1:1 matching grants to startups.  The grants are traunched between validation, acceleration, and the incubation and growth phase over the period of one year.  The program offers the resources, knowledge, support, and funding necessary to scale the startups' idea and grow it into an international business through\nStartup Funding, Prototyping Facilities, Business Coaching, Workshops,Customer Access, Industry Connections,  and Follow-on Mentoring.The Cleanergy acceleration program offers cash-based grants and cash-based 1:1 matching grants to startups.  The grants are traunched between validation, acceleration, and the incubation and growth phase over the period of one year.  The program offers the resources, knowledge, support, and funding necessary to scale the startups' idea and grow it into an international business through\nStartup Funding, Prototyping Facilities, Business Coaching, Workshops,Customer Access, Industry Connections,  and Follow-on Mentoring.","Up to $37000 in grants and matching capital","Water and Wastewater Management;  Agriculture; Solid Waste Management; Transportation; Energy.","Ideation; Early Stage; Growth","The startups apply through a competitive application process involving a written application form and in-person interviews with a panel of  industry/investment/startup experts.","N/A","N/A","Grants"]
["berytech.org","info","Community@berytech.org","BESTMEDGRAPE","Berytech Technology Pole, USJ ESIB Campus, Mar Roukoz","Community@berytech.org","00 961 4 533 040","https://berytech.org/projects-lab/bestmedgrape/","Accelerator","BESTMEDGRAPE aims at supporting the creation of new startups/SMEs by transferring scientific/technological knowledge on local grape cultivars and the exploitation of wine by-products as a source of bioactive compounds that can be transformed into innovative commercial health products. BESMEDGRAPES provides new business opportunities & environmental sustainability using MED GRAPE nanotechnological products.","Lebanon","Lebanon","N/A","Grants","20% Project co-financing","Wine; Wine By-product.","Ideation; Early Stage; Growth","N/A","N/A","N/A","Grants"]
["bankaudi.com.lb","info",{"$f":"CONCATENATE(\"info@\",A101)","v":"info@bankaudi.com.lb"},"Bank Audi SAL","Bank Audi Head Office - Bab Idriss - Beirut - Lebanon.",null,"009611964758 - 0096178800224","http://bankaudi.com.lb","Bank","Commercial Bank.","Lebanon","Lebanon","Market Leader in Green/Environmental Loans over the past 10 years.","Green Funds; BDL subsidized programs.","N/A","Services; Industrial; Agriculture.","Growth","Financial ability, good moral standing and track record.","Credit Unworthyness","0 to 20%","GEFF (Green Economy Finance Facility); LEEREFF (Lebanese Energy Efficiency and Renewable Energy Financing Facility); GGF (Green for Growth Fund); Bank Loans; Corporate Social Responsibility Initiatives."]
["byvp.com","info","info@byvp.com","B&Y Venture Partners","2nd Floor, Block A, Beirut Gardens Bldg., Martyrs Square, Downtown, Beirut, Lebanon","info@byvp.com","00961 1 951 276","https://byvp.com","Venture Capital","B&Y Venture Partners is a MENA based venture capital firm that invests globally at both seed and growth stage. We invest in high impact founders building market transforming and category leading companies.","Lebanon","Global","Open for Proposals from Green Entrepreneurs.","Equity investments","$500k","Big Data & Analytics; E-commerce; Gaming Health Tech; Online Marketplaces; Big Data & Fintech; Cybersecurity; SaaS On-Demand Services; Enterprise software; Artificial Intelligence; Property Tech Big Data & Analytics; E-commerce; Gaming; Health Tech; Online Marketplaces; Big Data & Fintech.","Early Stage; Growth","Exceptional founders.","N/A","N/A","Equity"]
["theluxuryfund.com","info",{"$f":"CONCATENATE(\"info@\",A103)","v":"info@theluxuryfund.com"},"Azure Fund","Gemmayze, St Nicolas Stairs, TLF Ventures building",null,"00961 4 444955","http://theluxuryfund.com/","Venture Capital","Invests in Lebanese early-stage startups under the mandate of BDL's Circular 331 with a focus on Fashion and Luxury Tech.","Lebanon","Lebanon","N/A","Equity investments","Between $250K and $2M","Fashion; Consumer Analytics;  3D Printing; Last-Mile Delivery; Fintech.","Early Stage","Product Market Fit; Management Team Ability; Scalabity; High Barriers to entry; Valuation at entry; 2-3 year Cash Runway.","Lackluster Management Team; Poor business strategy and vision; Low Barriers to Entry; Highly Competitive market with dominant incumbents","NA","Equity investments"]
["almajmoua.org","info","Contact@almajmoua.org","Al Majmoua","Abdul Kader Street, Green Building Facing MUBS Beirut, Beirut","Contact@almajmoua.org",null,"http://www.almajmoua.org/","Microfinance Institution","The Lebanese Association for Development - Al Majmoua is a Lebanese independent, non-confessional, non-profit microfinance institution (MFI) that focuses since 1998 on supporting low-income and vulnerable individuals, particularly micro entrepreneurs and women, with affordable financial and non-financial services to fund their activities and build sustainable businesses.","Lebanon","Lebanon","Open for Proposals for Green Entrepreneurs.","Provides Financial and Non-financial services such Business Development services.","USD 2000 - USD 20000","All sectors.","Growth; Scale","Company's reputation\nFinancial needs\nFinancial sustainability and viability\nGrowth and Potential Clients\nGuaranteeCompany's reputation\nFinancial needs\nFinancial sustainability and viability\nGrowth and Potential Clients\nGuaranteeCompany's reputation\nFinancial needs\nFinancial sustainability and viability\nGrowth and Potential Clients\nGuaranteeCompany's reputation\nFinancial needs\nFinancial sustainability and viability\nGrowth and Potential Clients\nGuaranteeCompany's reputation\nFinancial needs\nFinancial sustainability and viability\nGrowth and Potential Clients\nGuarantee.","N/A","N/A","Micro Loans"]
["alfanar.org.uk","info","info@alfanar.org.uk","Alfanar","Beirut Digital District","info@alfanar.org.uk",null,"http://www.alfanar.org.uk","Venture Philanthropy","Alfanar is the first venture philanthropy organisation in the Arab world that provides growth stage social enterprises with funding, management support, mentorship, training and access to networks.","Lebanon","Lebanon; Egypt; Jordan","Open for Proposals from Green Entrepreneurs, only if they also have a social impac.","Grants; Repayable loans.","400,000 USD","Women empowerment and youth employment across all sectors; Children’s education; Green initiatives with social impacts.","Growth",null,"N/A","40,000 USD","Grants; Repayable grants."]
["aep.org.lb","info",{"$f":"CONCATENATE(\"info@\",A106)","v":"info@aep.org.lb"},"Association d'Entraide Professionnelle","Beyrouth Siege de L’AEP Badaro, Rue al alam",null,"01 382 610  M: 03/274198","http://www.aep.org.lb/","Microfinance Institution","Non-profit organization working for socio-economic development in the field of microfinance.","Lebanon","Lebanon","Open for Proposals from Green Entrepreneurs.","Loans","$5k with 11% interest","Family SME.","Early Stage; Growth","Invest in entrepreneur and not the person, AEP Favors people who has had difficulty obtaining a loan from bank.","The enterprise must be legally established.","The entrepreneur must have experience in entrepreneurship and ensure collateral.","Micro Loans"]
["im-capital.com","info","info@im-capital.com","IMCapital","Im capital (Holding) s.a.l. - Berytech Bldg #1294, Beirut Digital District ; Bechara El Khoury St., Bachoura, Beirut, Lebanon","info@im-capital.com",null,"www.im-capital.com","Venture Capital","IMCapital stimulates early-stage private investments by co-financing and guaranteeing capital. ","Lebanon","Lebanon","Equity investment in food production : L'atelier de miel and Taqa.","Matching Capital, Equity Guarantee and support Programmes to a Board range of qualified early-stage business and investor.","Ceiling of  500K$.","All sectors.","Early Stage; Growth; Scale","One of the main criteria for approving any co-investment is the involvement of a solid and experienced management team who have identified a creditable market niche with significant growth potential.","Tech project","N/A","Matching equity, investment guarantee, angel funding."]
["seeders.co","info","info@im-capital.com","Seeders","Berytech Digital Park, BDD # 1294, Bechara El Khoury St, Beirut","info@im-capital.com","00961 1 649555","http://www.seeders.co","Business Angels","A community of qualified Business Angels with a mandate to serve the Lebanese entrepreneurial landscape by injecting smart money in early-stage high-risk ventures.","Lebanon","Lebanon","Open for Proposals from Green Entrepreneurs.","Equity Investments; Access to networks and markets.","Up to 100k Funding","All sectors.","Early Stage","One of the main criteria for approving any co-investment is the involvement of a solid and experienced management team who have identified a creditable market niche with significant growth potential.","N/A","15k - Ticket size","N/A"]
["im-capital.com","info","info@im-capital.com","Lebanese Women Fund Angel","Berytech Digital Park, BDD # 1294, Bechara El Khoury St, Beirut","info@im-capital.com","00961 1 649555","www.im-capital.com","Business Angels","A community of qualified Women Business Angels with a mandate to serve the Lebanese entrepreneurial landscape by injecting smart money in early-stage high-risk ventures.","Lebanon","Lebanon","N/A","Equity Investments; Access to networks and markets.","Up to 10K Funding","All sectors.","Early Stage","LWAF looks for startups having a women founder with at least a 20% share. One of the main criteria for approving any co-investment is the involvement of a solid and experienced management team who have identified a creditable market niche with significant growth potential.","N/A","1K - Ticket size","Equity; Capacity building."]
["smart-esa.com","info",{"$f":"CONCATENATE(\"info@\",A110)","v":"info@smart-esa.com"},"Smart ESA","ESA Campus 289, rue Clemenceau Beirut",null,"00961 1 373 373","http://www.smart-esa.com/","Incubator; Accelerator","To promote innovation across all entrepreneurs & corporates via tailormade programs & trainings.","Lebanon","Lebanon","Smart ESA has worked with various eco-innovative projects such as Limm & Compost Baladi by accompanying the startups through workshops, one-one-coaching & opportunities outside of Lebanon. Smart ESA is also an official partner of INCO, France (home to all Green & Social startups) and welcomes all startups part of INCO's Sprint program at the Smart ESA co-working space.","Tailormade programs & trainings dedicated to entrepreneurs/corporates depending on their stage or area of interest. Smart ESA supplies startups/corporates with various opportunities to meet with qualified consultants & mentors upon request.","N/A","Knowledge economy.","Early Stage; Growth; Scale","Early Stage; Growth; Scale.","N/A","N/A","Capacity building; Grants."]
["ebrd.com","info","info@ebrd.com","European Bank for Reconstruction and Development","3rd Floor, Block B, Berytus Parks Bldg., Minet el Hosn, Beirut Central District, Lebanon",null,"00961 1 998094","https://www.ebrd.com/lebanon.html","Bank","EBRD is an international financial institution that supports projects from central Europe to Central Asia and the southern and eastern Mediterranean. Investing primarily in private sector clients whose needs cannot be fully met by the market, the Bank fosters transition towards open and democratic market economies. In Lebanon, they focus on supporting private sector competitiveness, promoting sustainable energy supply and enhancing the quality and efficiency of public service delivery.\n\nEBRD believes that a vibrant small and medium-sized enterprise (SME) sector is a vital component of a healthy market economy. Through its EU-funded Advice for Small Businesses (ASB) Programme, the Bank connects eligible SMEs to local consultants, who can provide them with the right expertise to grow their businesses, on a cost sharing/subsidy basis.an international financial institution that supports projects from central Europe to Central Asia and the southern and eastern Mediterranean. Investing primarily in private sector clients whose needs cannot be fully met by the market, the Bank fosters transition towards open and democratic market economies. In Lebanon, they focus on supporting private sector competitiveness, promoting sustainable energy supply and enhancing the quality and efficiency of public service delivery.","Lebanon","Lebanon","Open for Proposals from Green Entrepreneurs.","Loans","Cost sharing/subsidy basis","EBRD covers specialised areas of expertise including strategy; Marketing; Organisation; Operations; Technology; Engineering solutions; Quality management; Financial management; Energy efficiency and environment.","Scale","SME eligibility criteria to apply for the ASB Programme:\n\n• Size: maximum of 250 employees and an annual turnover of less than €50 million.\n• Ownership: be majority privately owned and majority owned by local nationals.\n• Maturity: operate for a minimum of 2 years.\n• Integrity: Enterprise and management should be credible and respectable; no previous or ongoing legal proceedings which may affect the implementation of the project.SME eligibility criteria to apply for the ASB Programme:\n\n• Size: maximum of 250 employees and an annual turnover of less than €50 million.\n• Ownership: be majority privately owned and majority owned by local nationals.\n• Maturity: operate for a minimum of 2 years.\n• Integrity: Enterprise and management should be credible and respectable; no previous or ongoing legal proceedings which may affect the implementation of the project.SME eligibility criteria to apply for the ASB Programme:\n\n• Size: maximum of 250 employees and an annual turnover of less than €50 million.\n• Ownership: be majority privately owned and majority owned by local nationals.\n• Maturity: operate for a minimum of 2 years.\n• Integrity: Enterprise and management should be credible and respectable; no previous or ongoing legal proceedings which may affect the implementation of the project.SME eligibility criteria to apply for the ASB Programme:\n\n• Size: maximum of 250 employees and an annual turnover of less than €50 million.\n• Ownership: be majority privately owned and majority owned by local nationals.\n• Maturity: operate for a minimum of 2 years.\n• Integrity: Enterprise and management should be credible and respectable; no previous or ongoing legal proceedings which may affect the implementation of the project.SME eligibility criteria to apply for the ASB Programme:\n\n• Size: maximum of 250 employees and an annual turnover of less than €50 million.\n• Ownership: be majority privately owned and majority owned by local nationals.\n• Maturity: operate for a minimum of 2 years.\n• Integrity: Enterprise and management should be credible and respectable; no previous or ongoing legal proceedings which may affect the implementation of the project.","N/A","N/A","Guarantee"]
["almamed.com","info","contact@almamed.com","Almamed","8,rue Ali Abderrazak, Casablanca 20100, Maroc","contact@almamed.com","00212 522 257 928","www.almamed.com","Venture Capital; Capital Investissement","Almamed est une société d’investissement indépendante. L’objectif étant de transformer les entreprises en portefeuille en des groupes aux standards internationaux de productivité, de qualité, de rentabilité, et de responsabilité sociale et environnementale. Almamed compte parmi ses investisseurs des institutionnels internationaux et marocains.","Morocco","Morocco; Tunisia","N/A","Equity Investments",null,"All sectors.","Growth; Scale","Notre approche d’investissement est basée sur un processus  de due diligence discipliné qui mesure les risques tout en identifiant les catalyseurs de la création de valeur. Nous nous engageons seulement dans les opérations amicales et travaillons avec des managers talentueux pour atteindre une performance exceptionnelle. Notre équipe spécialisée « opérations » aide à maximiser la valeur en pilotant l’amélioration des résultats opérationnels. Nous sommes des investisseurs patients, engagés à achever les meilleurs résultats à long terme pour nos entreprises et nos investisseurs.",null,"Montant Maximum 20% du projet.","Equity"]
["atlamed.ma","info","secretariat@atlamed.ma","ATLAMED","17, Rue Saria Ibnou Zounaim, Quartier Palmier, Casablanca","secretariat@atlamed.ma",null,"www.atlamed.ma","Corporate Investment","ATLAMED est une société anonyme basée à Casablanca, ayant pour objet le capital investissement et le conseil financier. Fondée en 2005, son capital est détenu par ses gérants et administrateurs. Les associés fondateurs d’ATLAMED sont des personnalités reconnues du monde de l’entreprise au Maroc ou de la Finance en Europe. Le projet ATLAMED vise, outre la recherche de moyens performants de création de valeur, le développement d’un nouveau pont d’affaires transméditerranéen, en mettant à profit le positionnement géographique et économique avantageux du Maroc, ainsi que la richesse et la complémentarité de l’expérience des associés fondateurs.","Morocco","Morocco","N/A","Equity Investments","Fourchette d’intervention : 10 à 50 MMAD","Energie et environnement; TIC.","Growth; Scale",null,null,null,"Equity; Technical Assistance."]
["azurpartners.ma","info",{"$f":"CONCATENATE(\"info@\",A114)","v":"info@azurpartners.ma"},"Azur Partners","Immeuble Blue Park N°25 Etage 11 - 117, Angle Avenue Hassan II & Rue d'Agadir, Casablanca",null,"00212 5 22 25 16 81","www.azurpartners.ma","Private Equity","Azur Partners est une société de gestion de fonds d’investissement créée en Avril 2010. Azur Partners met au service de ses clients ses compétences et ses réseaux nationaux et internationaux.","Morocco","Morocco","Azur Innovation Fund soutient les startups innovantes.","Equity Investments","ENTRE 1 MMAD ET 60 MMAD","Agroalimentaire; Agriculture; Valorisation des produits terroir marocain; Alimentation haut gamme; TIC.","Growth; Scale",null,null,"1MMAD","Fonds I : Afoulki invest Secteur d’activité : Nutrition, santé bien-être, Alimentation haut gamme, Cosmétique naturelle bio. Fourchette d’intervention : entre 1 à 6MMAD. Fonds III : Nebétou fund Secteur d’activité : Agroalimentaire, Agriculture, Valorisation des produits terroir marocain. Fourchette d’intervention : entre 6 à 60MMAD."]
["cdgcapital-pe.ma","info","info@cdgcapital-pe.ma","CDG Capital","101, Boulevard Massira Al Khadra 1er étage, Casablanca;",null,"(+) 212522981391","www.cdgcapital-pe.ma","Private Equity","CDG Capital Private Equity invests in the capital of SMEs in Morocco and Africa. With its expertise and experience, it helps companies across sectors accelerate their growth and become leaders in their field.","Morocco","Morocco; Tunisia; Algeria","N/A","Equity Investments","N/A","N/A","Growth; Scale","CDG Capital Private Equity seeks to partner with quality management teams with a strong track record, a well formulated strategy and the ambition to grow their company.\nWe typically invest in the capital of companies directly in the equity or through convertible obligations. We can take minority stakes or majority stakes, depending on the transaction and the needs of our partners. CDG Capital Private Equity seeks to partner with quality management teams with a strong track record, a well formulated strategy and the ambition to grow their company.\nWe typically invest in the capital of companies directly in the equity or through convertible obligations. We can take minority stakes or majority stakes, depending on the transaction and the needs of our partners. CDG Capital Private Equity seeks to partner with quality management teams with a strong track record, a well formulated strategy and the ambition to grow their company.\nWe typically invest in the capital of companies directly in the equity or through convertible obligations. We can take minority stakes or majority stakes, depending on the transaction and the needs of our partners. CDG Capital Private Equity seeks to partner with quality management teams with a strong track record, a well formulated strategy and the ambition to grow their company.\nWe typically invest in the capital of companies directly in the equity or through convertible obligations. We can take minority stakes or majority stakes, depending on the transaction and the needs of our partners.",null," 1MMAD","Equity"]
["creditagricole.ma","info","info@creditagricole.ma","HOLDAGRO","5, rue de Midelt, Hassan - 10000  Rabat; Morocco",null,"(+) 212537269265","www.creditagricole.ma/fr/holdagro","Bank","HOLDAGRO est la première banque d’affaires dédiée au secteur agricole et agro-industriel au Maroc. Créée en 1991, cette filiale du Crédit Agricole du Maroc est structurée en trois pôles : Capital investissement; Conseil et ingénierie financière; Prises de participations","Morocco","Morocco","Sustainable agricolture.","Equity Investments","N/A","N/A","Growth; Scale",null,null,null,"Equity"]
["africinvest.com","info","investor-relations@africinvest.com","Afric Invest","Résidence les Champs d'Anfa D, Rue Bab Chellah, quartier Racine Casablanca - Maroc","investor-relations@africinvest.com","(+) 212 522 363 736","www.africinvest.com","Venture Capital","AfricInvest was founded in 1994 and is part of Integra Group, an investment and financial services company.\nUniquely positioned as one of the most experienced private equity investors on the continent, AfricInvest has dedicated investment teams focused on Africa, and employs 75 professionals based in ten offices. AfricInvest raised USD 1.5Bn across 18 funds and benefits from strong, long-term support from both local and international investors, including leading development finance institutions in the United States and Europe. Having co-founded the African Venture Capital Association (AVCA) as well as the Middle East North Africa Private Equity Association (MENAPEA) and the Euromed Capital Forum, the firm is an active promotor of the private equity industry in the region.AfricInvest was founded in 1994 and is part of Integra Group, an investment and financial services company.","Morocco","MENA","Oui","Equity Investments; Mezzanine.","N/A","Key growth industries, including agribusiness; consumer/retail; education; healthcare.","Growth; Scale","1. Management de qualité, motivé, avec un bon track-record et financièrement intéressé; 2. Projet de développement avec une stratégie claire; 3. Bonne perspective de sortie; 4. Secteur offrant une bonne visibilité et des risques de changement maîtrisés; 5. Prix d’acquisition. raisonnable","1. Qualité des Ressources Humaines; 2. Emplacement géographique; 3. Manque de perspectives de sortie",null,"Equity Investments; Mezzanine; Technical Assistance."]
["tomglobal.org","info","hello@tomglobal.org","TOM: Tikkun Olam Makers","HaPelech Street 7, Tel Aviv , 6816727, Israel","hello@tomglobal.org","(+) 972 7 339 05643","http://tomglobal.org","Accelerator","TOM: Tikkun Olam Makers concluded TOM:Israel 2017 in a whirlwind 72-hour Makeathon at the Technion Institute in partnership with the Ruderman Family Foundation. The Makeathon (a marathon of making)  brought together over 160 ‘Makers’ - engineers, designers, innovators and problem solvers - from the United States, Canada, England, China, India, Sri Lanka and Israel, to work together with 20 people with disabilities to develop technological solutions for everyday challenges.\nand Israel, to work together with 20 people with disabilities to develop technological solutions for everyday challenges.","Israel","Israel","N/A","N/A","N/A","All sectors.","Early Stage; Growth","N/A","N/A","N/A","N/A"]
["techforgood.co","info","nir@techforgood.co","TechForGood","Shoken 32, 2nd floor, Tel Aviv Yafo","nir@techforgood.co",null,"https://www.techforgood.co/","Impact Investment; Accelerator","TechForGood is a global organization operating both in Israel and in South East Asia. Social-tech entrepreneurs, who use technology to tackle social problems, have what it takes to make the world a better place. TechForGood supports them with everything they need to scale up and build successful, profitable and impact-generating global companies. In 2014, Tech For Goog inaugurated The Rally. The latter is the first Israel's social tech accelerator. It intends to turn social issues like obesity, cyber-bullying, teen pregnancy from a niche effort by conscientious do-gooders to a mainstream business activity.","Israel","Israel; South East Asia","Israeli high-tech best practices have proven to to raise industry disruptive companies. We help social-tech entrepreneurs realize their visions by implementing the same methodologies in our acceleration programs.","No take equity from participants, at least for first round of training.","N/A","Technological thinking to tackle social inequalities.","Early Stage; Growth","N/A","N/A","N/A","N/A"]
["thesocialprogram.co.il","info",{"$f":"CONCATENATE(\"info@\",A120)","v":"info@thesocialprogram.co.il"},"The 8200 Social Program",null,"www.thesocialprogram.co.il",null,"https://www.thesocialprogram.co.il","Accelerator","The 8200 Social Program was founded by The 8200 Alumni Association to harness the human capital of 8200 alumni for the benefit of society. 8200 is the elite cyber security intelligence unit in the Israel Defense Forces. The program is a 5-month accelerator filled with workshops, events, and meetings with successful entrepreneurs, top-tier professionals in various domains, and prominent investors. Each cycle is composed of 10-12 entrepreneurs, after a comprehensive screening procedure. The cycle concludes with a Demo Day event where the entrepreneurs get the opportunity to pitch in front of prominent investors. As a non- profit organization, The 8200 social program does take equity nor claim ownership of the participating venture's intellectual property. One does not need to be an 8200 alumnus to apply.","Israel","Israel","Startups gratuated in 2016: https://www.thesocialprogram.co.il/alumni-class-2016-page; Startup gratuated in 2015: https://www.thesocialprogram.co.il/alumni-class-2015-page;  Startup graduated in 2014: https://www.thesocialprogram.co.il/alumni-class-2014-page.","Accelerator programmes; Incubator programmes.","Free office hours with professional services. ​Over 50 leading mentors – entrepreneurs, investors and 8200 alumni.​\nExposure to investors and strategic partners. ​Shared office space. Access to funding. ​Networking opportunities to utilize the members of 8200 alumni network.Free office hours with professional services. ​Over 50 leading mentors – entrepreneurs, investors and 8200 alumni.​\nExposure to investors and strategic partners. ​Shared office space. Access to funding. ​Networking opportunities to utilize the members of 8200 alumni network.Free office hours with professional services. ​Over 50 leading mentors – entrepreneurs, investors and 8200 alumni.​\nExposure to investors and strategic partners. ​Shared office space. Access to funding. ​Networking opportunities to utilize the members of 8200 alumni network.Free office hours with professional services. ​Over 50 leading mentors – entrepreneurs, investors and 8200 alumni.​\nExposure to investors and strategic partners. ​Shared office space. Access to funding. ​Networking opportunities to utilize the members of 8200 alumni network.","Early stage ventures that aim to solve social problems through technological means and have a prototype or proof of concept.","Early Stage; Growth","Applicants must have the potential for high growth and a meaningful social impact.","N/A","Not relevant","Grants; Capacity Building."]
["hutchisonkinrot.com","info","info@hutchisonkinrot.com","Hutchison Kinrot","Ha-Tsoran St 8, Netanya, Israel","info@hutchisonkinrot.com","00972-74-7136666","http://hutchisonkinrot.com/","Incubator","Hutchison Kinrot is a leading global seed investor with a diverse portfolio of early-stage companies. The company is committed to partnering with talented, focused entrepreneurs who are developing disruptive technologies in the areas of clean technologies, internet of things, and cybersecurity for infrastructure, with the goal of creating companies that can compete in the global market.","Israel","Israel","http://hutchisonkinrot.com/portfolio/","Equity Investments","N/A","Water; Wastewater treatment; Desalination; Smart-grid; Alternative energies; Energy efficiency; Oil and gas; Composite materials; Agritech; Waste management; Cybersecurity; Smart homes.","Ideation; Early Stage","N/A","N/A","N/A","Equity; Technical Assistence."]
["thekitchenhub.com","info","office@TheKitchenHub.com","The Kitchen","3 Habosem St. Ashdod","office@TheKitchenHub.com","00972-3-675-2220","www.thekitchenhub.com","Incubator","The Kitchen FoodTech Hub is a technological incubator providing seed funding, mentorship, industry connections, and a full set of operational services to early-stage ventures operating in all areas of the food and beverage value chain. These services include raw materials, processing, manufacturing technologies, quality assurance, utilities, waste and energy, logistics, packaging, ingredients, value-added products, and more.","Israel","Israel","https://www.thekitchenhub.com/portfolio/","Seed funding","A budget of $500,000 over a two-year work plan, with mutually agreed milestones.","All sectors.","Ideation","N/A","N/A","N/A","N/A"]
["seedil.com","info","info@seedil.com","SeedIL","Arik Einstein 3 Herzliya, Israel","info@seedil.com","N/A","http://www.seedil.com","Business Angels","SeedIL is an invitation-only international angel club for sophisticated investors considering investments in Israeli start-up ventures. SeedIL offers its club members (particularly those residing outside of Israel), high net worth individuals, seasoned entrepreneurs, and industry leaders access to start-up technology companies that would otherwise be unavailable or require significant time and effort to identify.\nSeedIL’s easy-to-use online platform allows members to browse and select pre-screened start-ups through a short video pitch and written business and financial materials. Eligible investors will also be able to review pre-negotiated investment opportunities. After investment, SeedIL is committed to ensuring that portfolio companies reach their full potential by providing them with ongoing coaching and connections.","Israel","Israel","N/A","Equity Investments","Min. Amount: $240K\nMax. Amount: $1MMin. Amount: $240K\nMax. Amount: $1MMin. Amount: $240K\nMax. Amount: $1MMin. Amount: $240K\nMax. Amount: $1MMin. Amount: $240K\nMax. Amount: $1MMin. Amount: $240K\nMax. Amount: $1MMin. Amount: $240K\nMax. Amount: $1MMin. Amount: $240K\nMax. Amount: $1M","All sectors.","Early Stage","N/A","N/A","N/A","Equity"]
["lavanproject.com","info","info@lavanproject.com","LAVAN","Rothschild Boulevard 15, Tel Aviv-Yafo, Israel","info@lavanproject.com","N/A","http://www.lavanproject.com","Business Angels","LAVAN is a network of angel investors who believe in the power of Israeli entrepreneurs to address global social and environmental challenges. The group invests in and supports early-stage Israeli companies delivering scalable solutions to global needs. LAVAN sees Israel and the Jewish world at the forefront of the global impact investing movement by 2025, with the world’s most sophisticated impact investors, entrepreneurs, accelerators, and fund managers.","Israel","Israel","N/A","Equity; Capacity Building.","Min. Amount\n$500K\nMax. Amount\n$3MMin. Amount\n$500K\nMax. Amount\n$3MMin. Amount\n$500K\nMax. Amount\n$3MMin. Amount\n$500K\nMax. Amount\n$3MMin. Amount\n$500K\nMax. Amount\n$3MMin. Amount\n$500K\nMax. Amount\n$3MMin. Amount\n$500K\nMax. Amount\n$3MMin. Amount\n$500K\nMax. Amount\n$3M","Projects pursuing social and environemental goals.","Early Stage","N/A","N/A","$500 k","Equity"]
["iangels.co","info","team@iangels.com"," iAngels","iAngels Crowd Ltd Rothschild Blvd 18, Tel Aviv, 6688121","team@iangels.com","00972-72-247-8089","www.iangels.co","Business Angels","iAngels is a crowdfunding angel investing network, connecting investors worldwide with opportunities to invest in the most promising technology startups alongside recognized insiders. For investors, iAngels gives access to great companies like yours so they can build a personalized investment portfolio of companies that excite them and want to help succeed.","Israel","Israel","https://app.iangels.co/browse/startups","Equity; Capacity Building.","N/A","We invest in companies that solve clear problems affecting a significant number of people. Like most successful startups, customers should not be able to live without your solution.\nWe invest in companies that solve clear problems affecting a significant number of people. Like most successful startups, customers should not be able to live without your solution.\nWe invest in companies that solve clear problems affecting a significant number of people. Like most successful startups, customers should not be able to live without your solution.\nWe invest in companies that solve clear problems affecting a significant number of people. Like most successful startups, customers should not be able to live without your solution.\n","Early Stage","We look for technologically driven companies with concrete advantages over similar companies in the space. We assess IP and consult with sector specific experts in order to validate the technology. We invest in companies that solve clear problems affecting a significant number of people. Like most successful startups, customers should not be able to live without your solution.","N/A","N/A","N/A"]
["2b-angels.com","info","info@2b-angels.com","2B Angels","Schoken 32, Tel-Aviv 6655613, Israel","info@2b-angels.com","00972 -3-7718884/5/6","http://www.2b-angels.com","Business Angels; Impact Investment","2B Community is an impact investment fund with an innovative Community Corporation model. Its premise is that the social sector can become less dependent on philanthropy by leveraging its assets through investor-funded community corporations. Community corporations are a pairing between a business (established or newly-funded), which receives a financial investment from 2B Community and a social organization. The social organization brings its assets (brand, marketing prowess, physical assets, services etc) to the table, creating a synergy or competitive advantage for the business. The resulting returns are then re-invested in the social organization, reducing its dependence on philanthropy and creating a more sustainable source of funding for its activities.","Israel","Israel","http://www.2b-angels.com/portfolio/","Equity; Capacity Building.","N/A","Internet; Mobile; New media.","Early Stage","N/A","N/A","N/A","Equity"]
["exitvalley.com","info",{"$f":"CONCATENATE(\"info@\",A127)","v":"info@exitvalley.com"},"Exitvalley","Isserles 22, Tel Aviv-Yafo, Israel","https://www.exitvalley.com/?reg=1","N/A","www.exitvalley.com","Crowd Equity","ExitValley is a crowd equity platform whose mission is to change the rules of the game in the world of investing in start-ups and small businesses.","Israel","Israel","https://www.exitvalley.com/#top3","Equity Investments","Max. Amount $100K","Innovative companies runned in Israel.","Early Stage","N/A","N/A","From 25,000 dollars to 1 million dollars.","Equity based crowdfunding."]
["kickstarter.com","info","info@kickstarter.com","Kickstarter","58 Kent St, Brooklyn, NY 11222, États-Unis","N/A","N/A","https://www.kickstarter.com/about?ref=about_subnav","Crowdfunding","Kickstarter helps artists, musicians, filmmakers, designers, and other creators find the resources and support they need to make their ideas a reality. To date, tens of thousands of creative projects — big and small — have come to life with the support of the Kickstarter community. Kickstarter platform is accessible to for profit corporation which are \"benefit corporation\". It means that thos companies are obliged to consider the impact of their decision on society and not only shareholders. kickstarter delivers anually a benefit statement that measures the results of its efforts to promote social and environemental benefits.","Israel","Global","https://www.kickstarter.com/discover/section/design-tech?ref=global-footer","Crowdfunding","Most successfully funded projects raise less than $10,000, but a growing number have reached six, seven, and even eight figures.","ArtsComics; IllustrationDesign; TechFilmFood;  CraftGamesMusicPublishing.","Early Stage","https://www.kickstarter.com/help/faq/Kickstarter%20Basics?ref=press_basics","N/A","Fundraising camapign is governed by \"Funding all or nothing\" principle. Make a realistic assessment of the company's fundraing goals.","N/A"]
["mimoona.co.il","info","info@mimoona.co.il","Mimoona","17 Kiryat Sefer St. Tel Aviv - 077 2233444","N/A","N/A","https://www.mimoona.co.il","Crowdfunding","Mimoona is an internet platform which helps entrepreneurs promote their special dream… the one which they dream even while awake. It could be about making a movie, a CD, a book, an awesome gadget, performing scientific research, setting up a business, competing in a sports event, arranging an artistic event, a social or educational initiative- anything goes, almost any kind of initiative.","Israel","Israel","A whole page is dedicated to environmental projects :   https://www.mimoona.co.il/Search&category=5.","Crowdfunding","The entrepreneur sets its funding goal within a limited period of time. The enrivonment project related which raise the biggest amount of money reachs 70 840 NIS","Mimoona is available for any project needing funds and doesn't traget only proper entrepreunarial project.  ","Early Stage","Anyone can submit a business or project, although application are reviewed by Mimoona's staff. For more details : https://www.mimoona.co.il/index.php?module=Pages&pagenum=23","The principle which govers the fundraising campaing is \"funding all or nothing\".  In order for the contributors’ money to be turned over to the creator, it is absolutely necessary for the project to raise the target sum by the completion date.  If not, the entrepreneur can't amass the money.","\"Good will contributions\" (as the money contributed on the platform is not loan or investment, the entrepreneurs doens't have to pay funds back).","N/A"]
["headstart.co.il","info","info@headstart.co.il","Headstart",null,"N/A","N/A","https://www.headstart.co.il/page-58-How_does_it_work.aspx","Crowdfunding","Headstart enables an innovative method for funding, this is not about investment or lending. Project creators keep 100% ownership and control over their work. Instead, they offer products and experiences that are unique to each project. Anyone can realise his aspiration with Headstart. Artists, musicians, filmmakers, journalists, designers, entrepreneurs, developers and many more creative minded people can raise money to fund their projects and make great things possible.","Israel","Israel","There is a whole page dedicated to environemental project but there are not properly entreupreneurial : https://www.headstart.co.il/cat-79-Environment.aspx.  The page dedicated to business doesn't contain a special category for green entrepreneurship : https://www.headstart.co.il/cat-92-Entrepreneurship.aspx.","Crowdfunding","The entrepreneur sets its own funding goal within a limited period of time.","Headstart is meant to meet the needs of all sorts of creative projects. Chek item number five of the FAQ \"What types of projects can launch a crowdfunding campaign on Headstart?\": https://www.headstart.co.il/page-62-FAQ.aspx.","Early Stage","N/A","The principle which govers the fundraising campaing is \"funding all or nothing\".  In order for the contributors’ money to be turned over to the creator, it is absolutely necessary for the project to raise the target sum by the completion date.  If not, the entrepreneur can't amass the money.","\"Good will contribution\". Each \"creator\"/ project runner/ entrepreneur has perks associated with each contribution level.","N/A"]
["ourcrowd.com","info","info@ourcrowd.com","Our Crowd","28 Derech Hebron Tel   P.O. Box 8004  Jerusalem 9108001  Isra","N/A","00972 2 636 9300","https://www.ourcrowd.com","Crowd Equity","OurCrowd is a new approach to investing with access to pre-vetted startup opportunities alongside trusted venture capital and angel investors, while strengthening portfolio growth post-investment with OurCrowd’s strategic network. OurCrowd was started in 2013, driven by the idea that the business of building startups grows bigger and better when the global 'crowd' gains access to VC-level investment opportunities. \nToday, OurCrowd is a leading equity crowdfunding platform for investing in global startups, led by serial entrepreneur Jon Medved and run by a team of seasoned investment professionals. Offering unprecedented access to startup investing, individual investors through OurCrowd are fueling innovations that change the way people work, travel, shop, heal, and conduct business. OurCrowd investors participate in these opportunities alongside VCs and institutional co-investors, at the same terms.OurCrowd is a new approach to investing with access to pre-vetted startup opportunities alongside trusted venture capital and angel investors, while strengthening portfolio growth post-investment with OurCrowd’s strategic network. OurCrowd was started in 2013, driven by the idea that the business of building startups grows bigger and better when the global 'crowd' gains access to VC-level investment opportunities.","Israel","Global","Three clen tech related companies has been funded up to now: Taranis (Israel), Enverid (Israel) and LucidEnergy (USA). For more informations: https://www.ourcrowd.com/companies.","Crowd Equity","$ 3,207,269 invested in green technologies remated companies on average","Enterprise Solutions;  MedTech;  Mobility;  Internet of Things;  Semiconductors;  Consumer;  GreenTech;  WebTech;  FinTech  Cybersecurity Enterprise Solutions;  MedTech;  Mobility.","Early Stage","N/A","N/A","Equities crowdfunding","N/A"]
["entrepreneur.indiegogo.com","info","info@entrepreneur.indiegogo.com","Indiegogo","N/A","N/A","N/A","https://entrepreneur.indiegogo.com/how-it-works/","Crowdfunding","Indiegogo ins an international crowdfunding Plattform created in 2008, enabling people to solicit funds for an idea, charity, or startup. The site runs on a rewards-based system. Contributors donate and receive a gift, rather than an equity stake in the company. However following changes in Security and Exchange commission rules earlier in 2016, Indiegog has partnered with Micro Ventures to offer equity-based campaigns, allowing unaccredited investors to participate with equity stakes. The main asset comparing to its competitor Kickstarter is that Indiegogo disburses the funds immediately, when the contribution are collected through the user’s PayPal accounts.","Israel","Global","https://www.indiegogo.com/explore/energy-green-tech?project_type=all&project_timing=all&sort=trending.","Crowdfunding","No relevent average is possible. Depdends on the crowdfunding duration. So far, the green tech related project which raised the biggest amount of funds reachs $ 907 736 USD.  ","Technologies and innovation; Community project; Creative works.","Early Stage","N/A","N/A","\"Good will contributions\" associated to perks; equities crowdfunding","N/A"]
["impact1st.com","info","info@impact1st.com","Impact First","11 Hamenofim St. Ackerstein Bldg. B","info@impact1st.com","N/A","http://impact1st.com/","Impact Investment","Impact First Investments is an Israeli investment firm designed specifically to leverage ‎local technology and innovation in order to create global social impact. By investing exclusively in ‎socially driven Israeli start-ups, the firm aims to position itself at the intersection of ‎global social challenges and the technological solutions that address them.","Israel","Israel","http://impact1st.com/#portfolio","Equity Investments","N/A","Healthcare; Education; Assistive technologies; Agro technologies; Energy & Environement.","Growth","From seed to $ 2 million.","The venture must be a for-profit company, with a technology based product, located in Israel or Israel related and operating in the domains of healthcare, education, assistive technologies, ag-tech, energy & environment.","N/A","Equity"]
["kiedf.net","info","info@kiedf.net","Koret",null,"N/A","N/A","http://www.kiedf.net","Venture Philanthropy","KIEDF offers philanthropists a unique combination: leveraging contributions as if investing in their own business, helping people help themselves achieve self-sufficiency and personal dignity, contributing to a stronger private sector economy in Israel. KIEDF was established in 1994 to demonstrate that deploying philanthropy efficiently and effectively can stimulate economic explansion and create employment opportunity in Israel.","Israel","Israel","Interested in social and sustainable business.","Grants; Loans; Micro Loans.","N/A","Several targeted programs for Small Business run by Arab Israelis (with a focus on women), Jewish orthodox women and Ethiopian Israelis. Generally speaking, loans granted by Koret are dedicate to small business meeting difficulties to access credit.","Growth","N/A","N/A","N/A","Loans; Micro loans."]
["yadhanadiv.org.il","info","website@yadhanadiv.org.il","Yad Hanadiv","Yad Hanadiv 4 George Washington Street 9418704 Jerusalem ISRAEL","website@yadhanadiv.org.il","(+) 97225665107","www.yadhanadiv.org.il","Venture Philanthropy","Yad Hanadiv is dedicated to creating resources for advancing Israel as a healthy, vibrant, democratic society, committed to Jewish values and equal opportunity for the benefit of all its inhabitants, carrying forward the philanthropic tradition of the Rothschild family. Yad Hanadiv initiates and supports projects in cooperation with partners in the following Programme Areas: Academic Excellence, Education, Environment and Arab Community.  ","Israel","Israel","Yes, especially social and enviroment projects.","Grants; Loans.","N/A","Yad Hanadiv seeks innovative opportunities to address the needs of Israeli society. It carries forward a tradition of support for Jewish revival in Palestine begun by Baron Edmond de Rothschild in the second half of the 19th century. Established in its present form in 1958, the Foundation’s work is guided by a distinguished Board of Trustees led by members of the Rothschild family.  Major projects have included the building of the Israeli Knesset and Supreme Court, establishment of the Centre for Educational Technology: The Israel Institute for Advanced Studies at The Hebrew University; Educational Television; Rothschild Fellowships and Prizes; The Jerusalem Music Centre; Israel’s Open University;The MANOF Residential Youth Centre;The Environment and Health Fund and Avney Rosha; The Institute for School Leadership.\nYad Hanadiv seeks innovative opportunities to address the needs of Israeli society. It carries forward a tradition of support for Jewish revival in Palestine begun by Baron Edmond de Rothschild in the second half of the 19th century. Established in its present form in 1958, the Foundation’s work is guided by a distinguished Board of Trustees led by members of the Rothschild family.  Major projects have included the building of the Israeli Knesset and Supreme Court, establishment of the Centre for Educational Technology: The Israel Institute for Advanced Studies at The Hebrew University; Educational Television; Rothschild Fellowships and Prizes; The Jerusalem Music Centre; Israel’s Open University;The MANOF Residential Youth Centre;The Environment and Health Fund and Avney Rosha; The Institute for School Leadership.\nYad Hanadiv seeks innovative opportunities to address the needs of Israeli society. It carries forward a tradition of support for Jewish revival in Palestine begun by Baron Edmond de Rothschild in the second half of the 19th century. Established in its present form in 1958, the Foundation’s work is guided by a distinguished Board of Trustees led by members of the Rothschild family.  \n\nMajor projects have included the building of the Israeli Knesset and Supreme Court, establishment of the Centre for Educational Technology: The Israel Institute for Advanced Studies at The Hebrew University; Educational Television; Rothschild Fellowships and Prizes; The Jerusalem Music Centre; Israel’s Open University;The MANOF Residential Youth Centre;The Environment and Health Fund and Avney Rosha; The Institute for School Leadership.","Growth","N/A","N/A","N/A","Grants"]
["keren.bdsk.co.il","info","info@keren.bdsk.co.il","The State Guarantee Fund for Small Businesses",null,"N/A","N/A","http://keren.bdsk.co.il/","Loans","The Fund was initiated with the goal of helping establish or expand small businesses in all sectors of the economy. The government serves as the loan guarantor for bank loans, so that the banks will extend loans to small businesses despite insufficient collateral. Rather than collateral, the banks require a detailed business plan, on the basis of which the application for credit is judged. The Fund is managed by an SBAI steering committee, on which the Ministries of Finance and Industry and Trade are also represented.","Israel","Israel","N/A","Loans","The credit limit for a single business is NIS 500,000 (approx. $150,000). The loan is given for a period of up to five years for the purchase of equipment and one year for operating capital. The borrower need provide only the following collateral: mortgage of the fixed assets financed by the loan and a personal guarantee.","N/A","Growth","Eligibility terms for a loan are as follows:\nThe business may employ no more than 70 workers and its annual turnover may not exceed $5 million.\nThe requested credit line may only serve new business activity, i.e., establishing a new business or expanding an existing one. It may not be used to finance real estate purchases and construction, or to purchase existing businesses. The business owner must invest his or her own capital at a rate of no less than 25% of the total credit approved.\nDuring its first three years of operation the Fund has guaranteed loans to some 2,800 small businesses, for a total of over NIS 600 million (approx. $200 million).Eligibility terms for a loan are as follows:\nThe business may employ no more than 70 workers and its annual turnover may not exceed $5 million.\nThe requested credit line may only serve new business activity, i.e., establishing a new business or expanding an existing one. It may not be used to finance real estate purchases and construction, or to purchase existing businesses. The business owner must invest his or her own capital at a rate of no less than 25% of the total credit approved.\nDuring its first three years of operation the Fund has guaranteed loans to some 2,800 small businesses, for a total of over NIS 600 million (approx. $200 million).Eligibility terms for a loan are as follows:\nThe business may employ no more than 70 workers and its annual turnover may not exceed $5 million.\nThe requested credit line may only serve new business activity, i.e., establishing a new business or expanding an existing one. It may not be used to finance real estate purchases and construction, or to purchase existing businesses. The business owner must invest his or her own capital at a rate of no less than 25% of the total credit approved.\nDuring its first three years of operation the Fund has guaranteed loans to some 2,800 small businesses, for a total of over NIS 600 million (approx. $200 million).","N/A","N/A","Loans"]
["israelfreeloan.org.il","info","info@israelfreeloan.org.il","Israel Free Loans Associations","29 Rivka Street (Talpiot), Jerusalem 9346143","N/A","N/A","www.israelfreeloan.org.il","Loans","The Israel Free Loan Association (IFLA) is the largest Jewish interest free loan organization in the world. Since its inception in 1990, IFLA has lent out over $240 million (US) by providing over 54,000 interest-free loans. Currently IFLA lends out over $20 million every year to Israelis. Thanks to proper loan management, we have an average repayment rate of 99.8% throughout IFLA’s history.  IFLA loans help many sectors of Israeli society in numerous ways. They enable Israelis without sufficient means to open small businesses or expand existing ones, help Ethiopian immigrants move out of temporary housing, facilitate student loans to obtain academic degrees, allow ailing Israelis to purchase vital equipment and medicines or undergo operations, assist struggling Israelis get back on their financial feet, and much more.The Israel Free Loan Association (IFLA) is the largest Jewish interest free loan organization in the world. Since its inception in 1990, IFLA has lent out over $240 million (US) by providing over 54,000 interest-free loans. Currently IFLA lends out over $20 million every year to Israelis. Thanks to proper loan management, we have an average repayment rate of 99.8% throughout IFLA’s history.","Israel","Israel","N/A","Loans","Up to NIS 90 000 (Small Business Loan)","The Israel Free Loan association accords credit to a large range of people almost without any interests. The small business loan targets israelis without sufficient means to open small business or expand existing ones.  ","Growth","N/A","Small business is eligible to the grant as long as its average monthly turnover is not exceeding NIS 150 000. Applicant must be age 22-67. Fore more details on the business loan process: http://www.israelfreeloan.org.il/en/ifla-loans/business-loan-process-step-by-step/","Around 25 000 NIS","Loans"]
["ivn.org.il","info","info@ivn.org.il","IVN","20 Galgalei Haplada Street P.O.Box 4004","info@ivn.org.il","N/A","http://ivn.org.il","Impact Investment; Loans;","IVN is at the forefront of the social business arena (fourth sector) in Israel, nurturing and growing this emerging sector and generating sustainable social impact by providing Israel’s social businesses with knowledge, financing and business world connections.","Israel","Israel","N/A","http://ivn.org.il/he/portfolio/portfolio","N/A","Social businesses engaged in lowering the cost of living; Regional economic development;  Education and Technology.","Early Stage","N/A","N/A","N/A","Loans; Equity; Grants."]
["ibdaajo.org","info","info@ibdaajo.org","IBDAA","Zuhair Matar Street, Amman",null,null,"www.ibdaajo.org","Incubator","IBDAA is a nongovernmental non-profitable organization that was established in 2008 with a vision and mission of supporting the creative and talented youth of Jordan. We are a business incubator that works on developing the projects of the youth to become start-ups by providing them with the needed support, funds and connecting them with individuals and entities that can support and benefit them.","Jordan","Jordan","N/A","Incubator","N/A","Green technologies; Social projects.","Ideation","Teams and not individuals; Clarity of vision and end goal; Project needs to have a social impact.","Lack of social impact: this impact has to be proved by the entrepreneurs.","N/A ","Capacity building; Grants."]
["injaz.org.jo","info","aalsharif@injaz.org.jo","INJAZ"," Makkah Street,Salam Neighborhood, Building number (20)","aalsharif@injaz.org.jo","00962 6 565 7410","http://www.injaz.org.jo/","Incubator","INJAZ was founded in 1999 as a project under a USAID-funded program, Save the Children. In 2001, INJAZ became an independent, non-profit Jordanian organization. Over the past 17 years, INJAZ has established itself as a leading solution provider linking the public, private, and civil society sectors to bridge the skills gap between the educational system and the changing needs of the labour market.","Jordan","MENA","N/A","Incubator","20000 JDs","Energy; Media; Technology; Enviorment; Manifacturing; Tourism; Services, Agricolture; Food.","Ideation","Attending company start-up program.","Insufficient start-up targeted banking products.","3000 JDs","Grants"]
["bdc.org.jo","info","info@bdc.org.jo","Business Development Center","941865 Amman 11194 Jordan","info@bdc.org.jo","N/A","http://www.bdc.org.jo/","Incubator; Accelerator","Established in 2004, the Business Development Center (BDC) is a non-profit organization committed to fostering economic development and public reform in Jordan and the Middle East. As a national and regional resource, BDC has been on the forefront of various successful multi-million dollar projects and works with a business ecosystem of potential contributors and participants such as: business service providers, government entities, universities and international partners to continue its mission of delivering effective development programming.","Jordan","Jordan","Green entrepreneurship training program; Access to finance training program.","Incubator; Accelerator.","N/A","All sectors","Ideation; Early Stage; Growth","None","None","None","Grants"]
["nmb.com.jo","info","info@nmb.com.jo","National Microfinance Bank (NMB)","Amman - Aljubeha – Yajuz st.","info@nmb.com.jo","079 902 6738","http://www.nmb.com.jo/","Microfinance Institution","National Microfinance Bank (Alwatani) is a Jordanian private shareholding not-for-profit company that finances income generating projects for underserved segments of society, spreads a culture of micro credit and entrepreneurship and carries out mission driven activities. NMB was established as a partnership between King Abdullah II Fund for Development (KAFD), Arab Gulf Program for Development (AGFUND), and two private sector investors. The concept of NMB stems from His Royal Highness’, Prince Talal bin Abdul-Aziz’s initiative to establish banks for micro and small entrepreneurs throughout the Arab World.","Jordan","Jordan","Green Loan available.","Loans to finance existing businesses however a start-up product is being developed as well.","Loans up to 50000 JD.","NMB finances industrial; Services; Trade sectors & Agricultural sectors.","Early Stage","Proper Documents; Guarantors.","Lack of proper documentation for SME’s.","N/A","Micro loans"]
["cab.jo","info","info@cab.jo","Cairo Amman Bank","PO Box 950661, Zara building, Wadi Saqra St., 11195 Amman, Jordan      ","info@cab.jo",96265006000,"www.cab.jo","Bank","Cairo Amman bank was the one of the first banks in Jordan that grant green loans and one of the pioneer in this regard. We offer financing programs which aim to rationalization of energy consumption, the bank lending their clients to install rationalization of renewable energy system which economize the operational electricity on the clients projects  target group of clients: industry sector or any sectors need rationalization of energy consumption.","Jordan","Jordan; Palestine","Yes","Green loans","JOD 1.00 million","All sectors","Growth","Same policy and procedure in the bank to finance any project in addition to the international standards of the fund providers.","High interest rate; Long and complicated procedure that will take 2 months","Its depends of the electric bill of the client project.","Loans"]
["siliconbadia.com","info","info@siliconbadia.com","Silicon Badia","PO BOX 4367 Amman 11183, Jordan","info@siliconbadia.com",65939094,"http://www.siliconbadia.com/","Venture Capital","Silicon Badia is a venture capital firm investing in technology companies in the Middle East and the U.S. We invest in innovative entrepreneurs and companies and use our global footprint to help our portfolio companies grow. Since 2012, we have invested in over 60 companies across both geographies.","Jordan","Jordan","N/A","N/A",1500000,"Technology.","Early Stage","Solid team, market opportunity, product-market fit.","Weakness of founding team, lack of product-market fit, size of market opportunity.","N/A","Equity"]
["tamweelcom.org","info","info@tamweelcom.org ","Tamweel","Head Office : Amman – Sweileh – Intersection of Jordan Standards and Metrology Org. - Al Rahmaniyah district – Khair Al Deen Al Maani St. – Jureisat Center 2 - Building No. 29","info@tamweelcom.org ","N/A","https://tamweelcom.org/service/2","Bank","We provide a diverse array of business loans, serving both micro- and small-enterprise owners. Our financing is meant to ensure business sustainability, as well as to support growth.","Jordan","Jordan","N/A","Loans; Micro insurance.","3.000.000 JOD","We support all industries except the agricultural projects.","Growth","Personal ID; Business license; Guarantor Personal ID\n","The person credit reputation; Credit Policy does not cater to customer needs","N/A ","1- Loans for social needs 300-4000 JOD.\n2- Loans for established/unlicensed businesses 300-1500 JOD.\n3- Loans for licensed businesses less than 1 year up to 2999 JOD\n4- Loans for licensed businesses more than 1 year up from 3000 - 50000 JOD1- Loans for social needs 300-4000 JOD.\n2- Loans for established/unlicensed businesses 300-1500 JOD.\n3- Loans for licensed businesses less than 1 year up to 2999 JOD\n4- Loans for licensed businesses more than 1 year up from 3000 - 50000 JOD1- Loans for social needs 300-4000 JOD.\n2- Loans for established/unlicensed businesses 300-1500 JOD.\n3- Loans for licensed businesses less than 1 year up to 2999 JOD\n4- Loans for licensed businesses more than 1 year up from 3000 - 50000 JOD1- Loans for social needs 300-4000 JOD.\n2- Loans for established/unlicensed businesses 300-1500 JOD.\n3- Loans for licensed businesses less than 1 year up to 2999 JOD\n4- Loans for licensed businesses more than 1 year up from 3000 - 50000 JOD."]
["oasis500.com","info","suleimana@oasis500.com","Oasis500","King Hussein Business Park, Building No.7, Amman Jordan","Suleiman Arabiat – Head of Operations, suleimana@oasis500.com","(+) 962 6 580 5460, ext. 4251 +962 79 784 4504","www.oasis500.com","Private Equity","Oasis500 is the leading seed investment company and business accelerator in the Tech and Creative Industry spaces based in Amman, Jordan. We enable great entrepreneurs to transform their viable ideas or creative talents into scalable businesses. That includes finding those entrepreneurs, investing in their startups, bridging their know-how gap, and eventually helping them get follow-on funding. In the process, we have become one of the most influential players in advancing the entrepreneurship and innovation ecosystem in Jordan and the MENA region in general.","Jordan","MENA","N/A, no eco-innovative startups were invested in.","Oasis500 invests only in cash + in-kind against equity.","Oasis500 invests up to US$50,000 against 10% equity","Information and Communication Technology (ICT), with verticals that include Healthcare Technologies; Financial technologies; Sustainable Technologies, IoT, etc…\nCreative Industries (CI), with verticals that include music and film production; Product Design; Gastronomy and Food Products; Fashion and Creative Designs, etc…","Growth; Scale","Pitch deck that includes product-market fit demonstration, financial projections, technical capability to create the product/service, and scalability potential.","Being unscalable, lack of technical know-how required to implement the product/service, no product-market fit.","Oasis500 invests up to US$50,000 against 10% equity","A private equity investment offering of up to US$50,000 against 10% equity."]
["jordangbc.org","info",{"$f":"CONCATENATE(\"info@\",A147)","v":"info@jordangbc.org"},"Jordan Green Building Council","Amman / 0790841920","N/A","N/A","jordangbc.org","Business Angels","The Jordan Green Building Council is a world leader non-profit, non-governmental, member based organization established in 2009.","Jordan","Jordan","Green affordable housing project\n Green affordable housing project\n Green affordable housing project\n Green affordable housing project.","Grants","130’000 for 40 retrofit & 5 new construction","Green built environment.","Early Stage","N/A","Non-conformance to vision and mission.","N/A","Grants"]
["kafd.joen","info","info@kafd.jo","King Abdullah II Fund for Development (KAFD)","Amman Business Park","info@kafd.jo","06 5822820","www.kafd.jo/en","Grants","King Abdullah II Fund for Development a non-governmental organisation to enhance productivity through implementing development projects that help alleviate poverty and unemployment in partnership with the private and the public sectors.","Jordan","Jordan","They are partners in Southern Renewable Energy Company (Ma’an).","Grants Programs (Youth Empowerment Window + Creativity in Serving Community).","JOD (500 – 45’000)","Social & youth initiatives.","Ideation; Early Stage; Growth","Jordanian, age range (18-35), social impact.","Not conforming to requirements","N/A","Grants; Loans."]
["jreeef.gov.jo","info",{"$f":"CONCATENATE(\"info@\",A149)","v":"info@jreeef.gov.jo"},"Jordan Renewable Energy and Energy Efficiency Fund (JREEEF)","N/A","N/A","\n0777673085\n0777673085","http://www.jreeef.gov.jo/","Public opportunity","JREEEF is developing a set of financial and technical support products or “windows” for the different types of programs it will implement, including: revolving credit, grants, loan guarantees, technical support and equity financing.  JREEEF also works closely with donors to leverage funding to support establishment of the windows, as well as awareness campaigns. JREEEF works collaboratively with and leverages the efforts of market developers, market supporters and beneficiaries themselves to reach the selected target groups. JREEEF is developing a set of financial and technical support products or “windows” for the different types of programs it will implement, including: revolving credit, grants, loan guarantees, technical support and equity financing.  JREEEF also works closely with donors to leverage funding to support establishment of the windows, as well as awareness campaigns.\nJREEEF works collaboratively with and leverages the efforts of market developers, market supporters and beneficiaries themselves to reach the selected target groups.JREEEF is developing a set of financial and technical support products or “windows” for the different types of programs it will implement, including: revolving credit, grants, loan guarantees, technical support and equity financing.  JREEEF also works closely with donors to leverage funding to support establishment of the windows, as well as awareness campaigns. JREEEF works collaboratively with and leverages the efforts of market developers, market supporters and beneficiaries themselves to reach the selected target groups. JREEEF is developing a set of financial and technical support products or “windows” for the different types of programs it will implement, including: revolving credit, grants, loan guarantees, technical support and equity financing.  JREEEF also works closely with donors to leverage funding to support establishment of the windows, as well as awareness campaigns.\nJREEEF works collaboratively with and leverages the efforts of market developers, market supporters and beneficiaries themselves to reach the selected target groups.","Jordan","Jordan","Renewable energy; Energy efficiency.","Grants; Loans; Guarantee.","Depends","1. Schools program: King Abdullah’s initiative for heating schools, implementing energy efficiency and renewable energy actions.\n2. Household program: including Solar Water Heater (SWH) & Solar PV systems\n3. Public buildings: conducting the energy audits in the governmental buildings.\n4. Worship places: installation of solar PV systems for worship places including mosques and churches.\n5. Small and Medium Enterprises (SME’s): this includes EE & RE actions for the Industrial;Hotels and Agriculture sector.\n6. Awareness and capacity building programs.1. Schools program: King Abdullah’s initiative for heating schools, implementing energy efficiency and renewable energy actions.\n2. Household program: including Solar Water Heater (SWH) & Solar PV systems\n3. Public buildings: conducting the energy audits in the governmental buildings.\n4. Worship places: installation of solar PV systems for worship places including mosques and churches.\n5. Small and Medium Enterprises (SME’s): this includes EE & RE actions for the Industrial; Hotels and Agriculture sector.\n6. Awareness and capacity building programs.1. Schools program: King Abdullah’s initiative for heating schools, implementing energy efficiency and renewable energy actions.\n2. Household program: including Solar Water Heater (SWH) & Solar PV systems\n3. Public buildings: conducting the energy audits in the governmental buildings.\n4. Worship places: installation of solar PV systems for worship places including mosques and churches.\n5. Small and Medium Enterprises (SME’s): this includes EE & RE actions for the Industrial;Hotels and Agriculture sector.\n6. Awareness and capacity building programs.1. Schools program: King Abdullah’s initiative for heating schools, implementing energy efficiency and renewable energy actions.\n2. Household program: including Solar Water Heater (SWH) & Solar PV systems\n3. Public buildings: conducting the energy audits in the governmental buildings.\n4. Worship places: installation of solar PV systems for worship places including mosques and churches.\n5. Small and Medium Enterprises (SME’s): this includes EE & RE actions for the Industrial; Hotels and Agriculture sector.\n6. Awareness and capacity building programs.","Ideation; Early Stage; Growth","N/A","Not feasible.","N/A","Grants; Loans; Guarantee."]
["shamalstart.com","info","info@shamalstart.com","Luminus Shamal Start","Irbid Development Area, Luminus Technical University College (LTUC), Building #1","N/A","00962-799-207-198","http://www.shamalstart.com/","Accelerator","ShamalStart is the Leading Business accelerator & Seed Investor in North of Jordan (Irbid & Mafraq).","Jordan (Irbid and Mafraq)","Jordan","We have supported startups with eco innovative projects.","Business Incubator and fablab support to build prototypes.","10,000 Euro","Services and Manufacturing.","Early Stage; Growth","Innovative in the fields of services or manufacturing.","Not in the fields of services or manufacturing, mot Syrian or Jordanian, age less than 18.","N/A","Seed funds; Grants; Equity."]
["casbahbusinessangels.com","info","info@casbahbusinessangels.com","SARL CBA Ventures","5 BLVD BOUROUA SI LOUNES, LOCAL # 2, AIN BENIAN, ALGER",null,"(+) 213-557-61-93-54","http://casbahbusinessangels.com/","Business Angels","Experts en création, management et développement de l'entreprise.","Algeria","Algeria","Non","Equity","5 À 10 MDA","All sectors.","Growth","N/A","N/A","N/A","Equity; Capacity Building."]
["alsalamalgeria.com","info","info@alsalamalgeria.com","AL Salam Bank","233 RUE AHMED OUAKED DELY BRAHIM ALGER","N/A"," 213(0)23304607","www.alsalamalgeria.com","Bank","N/A","Algeria","Algeria","Non","Loans","N/A","PAS DE SECTEUR PREFERENTIEL.","Growth","Due diligence et examen de business plan.","N/A","N/A","Loans"]
["eldjazair-istithmar.dz","info","dg@eldjazair-istithmar.org","ELDJAZAIR ISTITHMAR SPA","45 rue dES FRERES ABDESSLAMI ALGER","dg@eldjazair-istithmar.org","N/A","https://www.eldjazair-istithmar.dz/","Equity","El Djazair Istithmar. Spa, première société de capital investissement agréée par le Ministère des Finances en date du 05 Mai 2010, est honorée de mettre à la disposition de ses partenaires et prospects un outil de communication moderne et performant. Aussi, par cette action nous comptons apporter, un tant soit peu, notre contribution au financement d’un secteur stratégique en l’occurrence celui de la Petite et moyenne entreprise (Pme).","Algeria","Algeria","Non","N/A","jusqu'à 50 MILLIONS DZD","Tous sauf commerce.","Growth; Scale","Due diligence et examen de business plan.","non",0.51,"Equity; Mezzanine."]
["sofinance.dz","info","infos@sofinance.dz","SOFINANCE","34 AVENUE MOHAMED BELKACEMI , Alger","infos@sofinance.dz","(+) 21321476600","www.sofinance.dz","Equity","SOFINANCE spa, Société Financière d'Investissement, de Participation et de Placement, est un établissement financier public agréé par la Banque d'Algérie le 09 janvier 2001, doté d'un capital social de 5.000.000.000 DA.SOFINANCE spa, Société Financière d'Investissement, de Participation et de Placement, est un établissement financier public agréé par la Banque d'Algérie le 09 janvier 2001, doté d'un capital social de 5.000.000.000 DA.","Algeria","Algeria","Non","Participation en capital, leasing et credit MLT.","50 millions DZD","Energies renouvelables.","Growth; Scale","Due diligence et examen de business plan.","N/A",0.51,"Crédit; Leasing; Equity."]
["med-investment.com","info",{"$f":"CONCATENATE(\"info@\",A155)","v":"info@med-investment.com"},"Med Invest holding SPA","7 RUE SAID GHARBI ALGER","N/A","213(0)21635631","http://med-investment.com/","Equity","N/A","Algeria","Algeria","Non","PRISE DE PARTICIPATIONS.","N/A","OIL&GAS; CONSTRUCTION; ENERGIES RENOVELABLES.","Growth; Scale","Due diligence et examen de business plan.","N/A","N/A","N/A"]
["africinvest.com","info","investor-relations@africinvest.com","Afric Invest","N/A","investor-relations@africinvest.com","213(0)770969697","www.africinvest.com","Venture Capital","AfricInvest was founded in 1994 and is part of Integra Group, an investment and financial services company based in Tunisia. Uniquely positioned as one of the most experienced private equity investors on the continent, AfricInvest has dedicated investment teams focused on Africa, and employs 70 professionals based in nine offices.","Algeria","Algeria; Tunisia; Morocco","Oui","Equity Investments; Mezzanine.","A partir de 4 millions euro","Industrie et Services.","Growth; Scale","Due diligence et examen de business plan.","N/A","51%","Equity Investments; Mezzanine; Technical Assistance."]
["ansej.org.dz","info","contact@ansej.org.dz","Agence nationale de soutien à l'emploi des jeunes","08 rue arezki benbouzid, el anasser Alger","contact@ansej.org.dz",null,"www.ansej.org.dz","Public Opportunity","L’Agence Nationale de Soutien à l’Emploi des Jeunes, est un organisme public à caractère spécifique, doté de la personnalité morale et de l’autonomie financière, placé sous la tutelle du Ministre chargé de l’emploi. L’ANSEJ accompagne les porteurs de projets pour la création et l’extension des micro-entreprises de production de biens et de services.","Algeria","Algeria","Oui","FOND DE SOUTIEN A L'EMPLOI DES JEUNES.","jusqu'à 10 millions de DA","Tous sauf commerce.","Ideation; Early Stage","Due diligence et examen de business plan.","Files d'attentes.","N/A","Prêt non remuneré jusqu'à 28% du projet  et bonification de credit bancaire jusquà 70% du projet."]
["fgar.dz","info","info@fgar.dz","Fond de garantie des crédits aux PME","166 LOT SAIDOUN MOHAMED KOUBA ALGER.","info@fgar.dz","(+) 213(0)23713834","www.fgar.dz","Guarantee fund","L'objectif principal du FGAR est de faciliter l'accès aux financements bancaires à moyen terme afin de supporter le démarrage et l'expansion des PME, en accordant des garanties de crédits aux banques commerciales, afin de compléter le montage financier de projets d'entreprises, viables et orientées vers la création et/ou le développement d'entreprises.","Algeria","Algeria","Non","GARANTIE DE CREDIT AU PME.","jusqu'à 100 MILLION DZD de cuverture de garantie, dans la limite de 80% du projet","Industrie et Services.","Growth","Due diligence et examen de business plan.","N/A","N/A","Garantie de crédit."]
["anvredet.org.dz","info",{"$f":"CONCATENATE(\"info@\",A159)","v":"info@anvredet.org.dz"},"Agence nationale de valorisation des resultats de recherche et du developpment technologie","N/A","N/A","(+) 213661501006","www.anvredet.org.dz","Accelerator","L'ANVREDET (Agence Nationale de Valorisation des résultats de la Recherche et du Développement Technologique) est un établissement public à caractère industriel et commercial, doté d'une personnalité morale et d'une autonomie financière. Elle a pour mission, la mise en œuvre, en relation avec les structures et organes concernés, d'une stratégie nationale de valorisation des résultats de la recherche.","Algeria","Algeria","Oui","FINANCEMENT DE PHASE D'AMORCAGE /FOND NATIONAL DE RECHERCHE.","jusqu'à 4 Millions de DZD","Resultats de recherche.","Early Stage; Growth","Validation de projet en qualité de resultat de recherche.","N/A","N/A","Financement a fond perdu ( amorcage non remboursable) jusqu'à 4 millions de DA."]
["twiiza.com","info","contact@twiiza.com","TWIIZA","La garderie villa 81, chenoua plage, TIPAZA","contact@twiiza.com"," 213 (0) 24 471 404","www.twiiza.com","Crowdfunding","Plateforme de crowdfunding.","Algeria","Algeria","Non","Plateforme de crowdfunding.","Non","All sectors.","Ideation; Early Stage","N/A","N/A","N/A","N/A"]
["chriky.com","info","contact@chriky.com","Chriky","N/A","contact@chriky.com","(+) 213673605159","www.chriky.com","Crowdfunding","Plateforme de crowdfunding.","Algeria","Algeria","Non","Plateforme de crowdfunding.","N/A","All sectors.","Ideation; Early Stage","N/A","N/A","N/A","N/A"]
["angem.dz","info","contact@angem.dz","Agence nationale de gestion du micro crédit","Cité 1516 Logements Aïn El Malha Tours N° H1-H2-H3 Gué de Constantine 16260 alger","contact@angem.dz","(+) 213 (0) 0661 87 04 58","www.angem.dz","Microfinance Institution","Le dispositif permet deux (02) formules de financement, dont une avec le concours d’une des cinq (05) banques publiques partenaires.","Algeria","Algeria","Non","Fond de garantie mutuelle du micro credit.","Jusqu'à 1 million de DA","Tous sauf commerce.","Early Stage; Growth","Non","Non","Non","Prêt non remuneré jusu'à 29% du projet et credit bancaire bonifié jusuq'à 70% du projet."]